Cogmind - Beta 16 @@@ ROGUE MODE // 2025.12.25 @ 14:49:26 Player: AngelSpirit Result: Escaped! Performance ------------- Evolutions (9) 4500 Regions Visited (32) 6400 Robots Destroyed (546) 2730 Value Destroyed (29041) 29041 Prototype IDs (379) 7580 Alien Tech Used (7) 1400 Bonus (35375) 35375 TOTAL SCORE: 87026 Bonus ------- Triggered High Security 500 High Alert Combat Kills 5476 Follower Combat Kills 3842 Network Hubs Disabled 200 Met Imprinter 300 Was Imprinted 300 Met Zhirov 300 Met Warlord at Base 500 MAIN.C Attacked Warlord 500 Warlord Defense Kills 594 Built Enhanced Grunts 300 A7 Reached Mainframe 300 Met R17 at Cetus 500 Scanned by Researcher 500 Acquired SGEMP 2000 Delivered SGEMP 2000 Destroyed MAIN.C Guards 500 Met MAIN.C 5000 Hacked MAIN.C 300 Destroyed MAIN.C Shell 5000 Zhirov Destroyed MAIN.C 3000 Met Architect 300 Destroyed A8 300 Win 3000 Friendly Fire -137 Cogmind --------- Core Integrity 553/1600 Matter 300/300 Energy 400/700 System Corruption 0% Temperature Cool (16) Movement Treading (166) Location To Epsilon Eridani Parts ------- > --- POWER (2) -------- Vortex Chain Reactor > --- PROPULSION (6) --- Improved Heavy Siege Treads Enhanced Armored Heavy Treads Enhanced Armored Heavy Treads > --- UTILITY (13) ----- Desublimator Concept Phasing Heat Sink Concept Antigrav Storage Unit Spectral Analyzer Experimental Targeting Computer Experimental Phase Shifter Heavy Regenerative Plating Concept RG22 Armor Concept RG22 Armor Concept RG22 Armor AEGIS Remote Shield Experimental System Purifier > --- WEAPON (4) ------- Concept Plasma Driver Concept Helical Railcannon Concept Helical Railcannon Concept Helical Railcannon > --- INVENTORY (25) --- Vortex Chain Reactor Improved Heavy Siege Treads Concept Phasing Heat Sink Concept Chromion Battery (800) Experimental Matter Compressor (500) Concept NT7 Matterbank (710) Long-range Sensor Array Advanced Recoil Stabilizer Zionite Weapon Casing Heavy Regenerative Plating Concept RG22 Armor Experimental Focal Shield Experimental EM Shield Concept XC Strikerail Concept XC Strikerail Enhanced Hardcell Cannon Hypervelocity Linear Accelerator Hellfire Missile Launcher Concept Deflector Sword Peak State ------------ > --- POWER ------------ Vortex Chain Reactor > --- PROPULSION ------- Improved Heavy Siege Treads Enhanced Armored Heavy Treads Enhanced Armored Heavy Treads > --- UTILITY ---------- Desublimator Concept Phasing Heat Sink Concept Antigrav Storage Unit Spectral Analyzer Experimental Targeting Computer Experimental Phase Shifter Heavy Regenerative Plating Concept RG22 Armor Concept RG22 Armor Concept RG22 Armor AEGIS Remote Shield Experimental System Purifier > --- WEAPON ----------- Concept Plasma Driver Concept Helical Railcannon Concept Helical Railcannon Concept Helical Railcannon > --- INVENTORY -------- Vortex Chain Reactor Improved Heavy Siege Treads Concept Phasing Heat Sink Concept Chromion Battery Experimental Matter Compressor Concept NT7 Matterbank Long-range Sensor Array Advanced Recoil Stabilizer Zionite Weapon Casing Heavy Regenerative Plating Concept RG22 Armor Experimental Focal Shield Experimental EM Shield High-powered Transdimensional Reconstructor High-powered Transdimensional Reconstructor Concept XC Strikerail Concept XC Strikerail Enhanced Hardcell Cannon Hypervelocity Linear Accelerator Hellfire Missile Launcher Concept Deflector Sword [Rating: 286] Favorites ----------- Power Micro Fission Core Engine Light Angular Momentum Engine Power Core Micro Fission Core Reactor Quantum Reactor Propulsion Combat Gravmag System Treads Enhanced Armored Heavy Treads Leg High-density Centrium Leg Wheel Compact Wheel Hover Unit Combat Gravmag System Flight Unit Cooled Nuclear Pulse Thruster Utility Improved Signal Interpreter Device Advanced Sensor Array Storage Large Storage Unit Processor Improved Signal Interpreter Hackware Advanced Hacking Suite Protection Improved Medium Armor Plating Weapon Phasing Sabre Energy Gun High-powered Shock Rifle Energy Cannon Null Cannon Ballistic Gun Concept XC Strikerail Ballistic Cannon Concept Helical Railcannon Launcher Mini Smartbomb Launcher Special Weapon Molecular Deconstructor Impact Weapon Impact Mace Slashing Weapon Phasing Sabre Piercing Weapon Force Lance Special Melee Weapon Datajack Build | -11 -10 -10 -8 -7 -7 -7 -7 -7 -6 -6 -6 -6 -6 -6 -5 -5 -5 -5 -4 -4 -4 -4 -4 -3 -3 -3 -2 -2 -2 -1 -1 -1 ------- Run | Yrd Mat Sub Mat Fac Was Fac Low Zio Pro Fac Ext Cet Arc Hub Fac Upp Upp War Pro Fac Upp Upp Zhi Pro Res Tes Res Qua Frg Acc Com Ac0 Slots Evolved 18 | . . . 4 2 . . . . . 2 . . . . 2 . . . . 2 . . . . 2 . 2 . . 2 . . Power 1 | . . . . . . . . . . . . . . . 1 . . . . . . . . . . . . . . . . . Propulsion 4 | . . . 1 1 . . . . . . . . . . 1 . . . . . . . . . 1 . . . . . . . Utility 11 | . . . 2 1 . . . . . 2 . . . . . . . . . 2 . . . . 1 . 1 . . 2 . . Weapon 2 | . . . 1 . . . . . . . . . . . . . . . . . . . . . . . 1 . . . . . Parts Attached 514 | 6 9 10 20 17 . 47 3 7 3 21 19 8 . 12 40 8 1 10 3 53 4 4 2 10 26 29 13 13 59 9 41 7 Power 60 | 1 1 1 4 2 . 6 . . . 4 2 1 . 1 4 . . 1 . 7 . . . 1 3 6 2 3 5 . 5 . Engine 16 | 1 1 1 2 2 . 3 . . . 4 1 . . . 1 . . . . . . . . . . . . . . . . . Core 15 | . . . 2 . . 3 . . . . 1 . . . 1 . . 1 . 6 . . . 1 . . . . . . . . Reactor 29 | . . . . . . . . . . . . 1 . 1 2 . . . . 1 . . . . 3 6 2 3 5 . 5 . Propulsion 124 | 2 . 5 4 3 . 11 1 1 1 5 5 2 . 5 14 . . . 1 16 1 1 1 1 3 4 5 4 15 2 11 . Treads 9 | 2 . 1 . . . . . . . . . . . . . . . . . . . . . . . . 1 . 1 . 4 . Leg 5 | . . . . . . . . . . . . . . . 2 . . . . . . . . . . . . 1 2 . . . Wheel 49 | . . 4 3 3 . 11 1 1 1 5 5 2 . 5 7 . . . . 1 . . . . . . . . . . . . Hover 60 | . . . 1 . . . . . . . . . . . 5 . . . 1 15 1 1 . 1 3 4 4 3 12 2 7 . Flight 1 | . . . . . . . . . . . . . . . . . . . . . . . 1 . . . . . . . . . Utility 218 | 1 4 . 4 4 . 17 . 4 2 12 9 3 . 5 17 6 1 6 . 22 3 3 1 4 11 14 3 4 28 7 18 5 Device 96 | . 2 . 1 1 . 10 . 3 1 6 1 . . 1 8 1 . 3 . 8 1 2 . 1 7 9 1 3 11 5 7 3 Storage 19 | 1 1 . 1 1 . . . . . . . . . . 1 . . . . 1 1 . . . 1 1 1 1 7 . . 1 Processor 24 | . . . . 1 . 1 . . . 2 1 . . . 1 1 . . . 6 . . . 1 1 1 . . 4 1 3 . Hackware 16 | . . . 1 . . . . . . 1 . . . . . 1 1 . . 5 1 . . . . 1 . . 1 1 3 . Protection 63 | . 1 . 1 1 . 6 . 1 1 3 7 3 . 4 7 3 . 3 . 2 . 1 1 2 2 2 1 . 5 . 5 1 Artifact . | . . . . . . . . . . . . . . . . . . . . . . . . . . . . . . . . . Weapon 112 | 2 4 4 8 8 . 13 2 2 . . 3 2 . 1 5 2 . 3 2 8 . . . 4 9 5 3 2 11 . 7 2 Energy Gun 23 | 1 . 2 5 1 . 2 . . . . . . . . . . . 2 . 2 . . . 1 5 . 1 . 1 . . . Energy Cannon 18 | . . 2 . . . 1 . . . . . . . . 1 1 . . 1 2 . . . 1 . 4 1 2 1 . 1 . Ballistic Gun 19 | 1 . . . 3 . 3 . . . . 1 . . . 2 . . . . 1 . . . . . 1 . . 4 . 3 . Ballistic Cannon 21 | . 1 . 3 4 . . . . . . . 1 . . 1 1 . 1 . . . . . 1 2 . 1 . 1 . 2 2 Launcher 9 | . 1 . . . . 4 1 . . . . . . . . . . . . . . . . . 2 . . . 1 . . . Special Weapon 3 | . . . . . . . . . . . 1 . . . . . . . . 1 . . . . . . . . . . 1 . Impact Weapon 5 | . 1 . . . . 1 . . . . . . . 1 . . . . 1 . . . . 1 . . . . . . . . Slashing Weapon 10 | . . . . . . 1 1 2 . . 1 1 . . . . . . . 1 . . . . . . . . 3 . . . Piercing Weapon 3 | . . . . . . 1 . . . . . . . . 1 . . . . 1 . . . . . . . . . . . . Special Melee Weapon 1 | . 1 . . . . . . . . . . . . . . . . . . . . . . . . . . . . . . . Unidentified Prototypes 85 | . . . 6 4 . 5 . 1 . 1 1 1 . . 2 1 . 3 . 5 . . 3 . 12 18 4 8 6 1 1 2 Corrupted Parts 4 | . . . . . . . . . . . . . . . . . . . . . . . . . . . . . 4 . . . System Corruption 26 | . . . . . . . . . . . . . . . . . . . . . . . . . . . . . 26 . . . Parts Lost 155 | . 1 8 3 1 1 20 1 . . 5 2 1 1 12 17 . . 7 7 18 . 3 . 5 2 7 . 3 17 2 9 2 Power 19 | . 1 2 . . . 2 . . . 2 . . . . 3 . . . 1 5 . . . 1 . 1 . . . . 1 . Propulsion 51 | . . 4 2 . . 6 . . . 2 1 1 1 5 9 . . . 4 4 . 1 . . . 1 . 2 6 . 2 . Utility 50 | . . . 1 . . 5 1 . . 1 1 . . 6 3 . . 4 2 5 . 1 . 2 2 3 . 1 6 1 3 2 Weapon 35 | . . 2 . 1 1 7 . . . . . . . 1 2 . . 3 . 4 . 1 . 2 . 2 . . 5 1 3 . Highest Loss Streak 8 | . 1 7 2 1 1 6 1 . . 2 1 1 1 5 4 . . 7 5 8 . 2 . 2 2 2 . 2 4 1 6 1 To Critical Strikes 1 | . . . . . . . . . . . . . . . . . . . . . . . . . . . . . 1 . . . Average Backups 16 | . 6 7 8 14 14 20 23 23 23 22 22 22 24 23 19 13 14 14 11 12 13 13 14 13 14 13 11 10 14 23 22 20 Power . | . . . 1 2 . 1 1 1 1 . 1 1 2 2 1 . . . . . . . . . 1 1 1 1 1 1 1 1 Propulsion 1 | . 2 1 . 1 2 1 2 2 2 2 2 . . . 1 1 1 1 . 1 3 1 1 1 . . . 2 3 5 2 1 Utility 9 | . 2 4 2 4 7 14 15 14 15 13 13 13 13 12 10 8 9 9 5 7 7 8 10 9 8 8 8 5 4 7 10 11 Weapon 4 | . . 2 4 6 5 4 4 4 4 4 5 6 8 7 5 4 4 4 5 4 3 2 2 1 2 1 1 1 3 8 6 6 Tool/Special . | . . . . . . . . . . . . . . . . . . . . . . . . . . . . . . . . . Unused Backups 68 | . . . 4 6 . 2 1 1 . 2 2 2 . . 1 . . 1 1 4 . . 2 . 4 7 1 3 4 2 9 9 Power 13 | . . . 1 3 . . . . . . 1 1 . . . . . . . . . . . . 2 1 . . . . 3 1 Propulsion 10 | . . . . . . . . . . . . . . . . . . 1 . 1 . . . . . 2 . . 1 . 4 1 Utility 25 | . . . 1 . . 1 1 1 . 2 1 . . . . . . . . 1 . . 2 . 2 1 1 1 2 2 1 5 Weapon 19 | . . . 2 3 . 1 . . . . . 1 . . 1 . . . 1 2 . . . . . 3 . 2 1 . . 2 Tool/Special 1 | . . . . . . . . . . . . . . . . . . . . . . . . . . . . . . . 1 . Average Slot Usage (%) 89 | . 97 91 87 83 80 82 95 91 92 91 90 99 94 93 86 93 94 98 82 82 100 97 89 97 94 90 85 89 84 88 87 79 Engine 2 | . 12 9 5 7 7 4 . . . 4 4 . . . 2 . . 3 5 1 . . . . . . . . . . . . Core 2 | . . . 1 . . 2 7 7 7 1 1 1 . . . . . 1 3 6 5 5 5 6 2 . . . . 3 1 . Reactor 2 | . . . . . . . . . . . . 5 6 6 3 5 5 3 . . 5 5 5 2 6 8 8 8 7 4 4 4 Treads 1 | . 27 11 . . . . . . . . . . . . . . . . . . . . . . . . . . . . 5 12 Wheel 8 | . . 14 23 16 15 17 26 23 23 19 20 25 21 21 13 . . . . . . . . . . . . . . . . . Hover 11 | . . . . . . . . . . . . . . . 8 29 29 28 20 19 26 25 26 26 27 24 20 20 14 20 10 . Device 13 | . 7 4 6 7 7 6 15 14 14 20 13 6 6 8 11 7 5 7 10 16 14 14 15 13 16 22 19 18 16 28 17 17 Storage 6 | . 14 14 9 7 7 7 7 7 7 6 6 6 6 6 5 5 5 5 5 5 5 5 5 5 4 4 4 6 9 8 4 5 Processor 7 | . . . . 5 7 7 7 7 7 6 9 13 13 13 8 8 7 5 5 10 10 10 10 11 10 9 8 8 9 7 10 8 Hackware 3 | . . . 8 7 7 7 . . . 1 . . . . . 4 9 11 5 7 10 10 10 10 3 3 4 . . . 1 . Protection 8 | . 5 9 8 6 7 5 6 7 7 10 13 19 20 16 9 11 11 8 8 1 5 5 5 5 10 5 8 12 5 4 15 16 Energy Gun 1 | . 14 6 5 . . 4 . . . . . . . . . . . 5 . 2 10 7 . 2 1 . . . . . . . Energy Cannon 2 | . . 14 1 . . 1 . . . . . . . . . 4 5 4 3 . . . . . 3 8 8 12 6 3 1 2 Ballistic Gun 2 | . 4 . . 6 7 8 . . . . . . . . 5 6 5 1 . . . . . . . . . . 3 3 4 . Ballistic Cannon 2 | . 4 5 16 14 11 . . . . . . 4 1 . 1 3 5 1 . . . . . 3 2 . . . . . 5 11 Impact Weapon 2 | . 4 . . . . 1 6 7 7 6 6 6 6 10 2 . . . 2 2 . . . . . . . . . . . . Slashing Weapon 3 | . . . . . . 2 7 11 14 12 12 7 11 7 1 . . . . 1 . . . . . . . . 2 4 4 1 Peak Build Rating 286 | 6 8 11 28 53 51 54 53 56 57 68 72 71 69 74 98 97 96 108 112 124 125 126 124 126 163 178 184 186 272 267 279 286 Average Rating 110 | 4 7 9 22 45 48 47 47 54 56 64 67 68 67 67 76 93 95 102 94 98 121 118 111 120 151 168 172 178 204 259 269 280 On Entrance 94 | . 6 8 10 22 51 47 44 51 56 57 67 63 69 68 73 86 94 96 53 69 121 122 123 124 124 161 163 168 179 232 243 278 Avg Prop Armor Cover (%) 6 | . . 16 11 . . . . . . . . . . . 7 . . . . 7 . . . . . . . . 3 . 8 . Naked Turns . | . . . . . . . . . . . . . . . . . . . . . . . . . . . . . . . . . Heaviest Build 182 | 13 21 30 46 111 110 124 113 115 117 139 144 143 143 138 159 74 74 75 66 64 64 64 62 66 88 96 92 98 104 97 166 182 Greatest Support 235 | 40 40 40 36 56 56 64 64 60 60 56 60 58 58 64 75 75 75 75 74 64 64 65 65 66 93 93 98 98 104 98 235 235 Greatest Overweight (x) 30 | . . 2 2 1 1 4 1 2 2 3 2 3 3 7 13 . . . 3 6 . 1 . 1 1 1 1 1 30 1 4 . Average Overweight (x) . | . . 1 . . 1 1 1 1 1 2 2 2 2 2 1 . . . . . . . . . . . . . . . . . Largest Inventory Capacity 25 | 8 10 10 15 25 25 25 25 25 25 25 25 25 25 25 25 15 15 15 15 15 15 15 15 15 15 15 15 15 25 25 25 25 Average Capacity 19 | 7 9 10 10 21 25 25 25 25 25 25 25 25 25 25 22 15 15 15 15 15 15 15 15 15 15 15 15 15 17 25 25 25 Most Carried 25 | . 10 10 13 21 19 25 25 25 25 25 25 25 25 25 25 15 15 15 15 15 15 15 15 15 15 15 15 15 25 25 25 25 Average Carried 18 | . 6 7 8 16 17 23 24 24 25 24 24 23 25 24 21 14 14 14 12 14 14 14 14 14 14 14 14 14 17 24 23 23 Final Capacity 25 | 8 10 10 15 25 25 25 25 25 25 25 25 25 25 25 15 15 15 15 15 15 15 15 15 15 15 15 15 15 25 25 25 25 Final Carried 25 | . 10 8 13 18 19 25 25 25 25 25 25 25 25 24 15 15 15 15 13 15 15 15 15 15 15 15 15 15 25 25 25 22 Class Distribution -------------------- 9% | Gladiator 8% | Mutant 7% | Commander-Gladiator 6% | Scavenger-Mutant 5% | Messiah-Scout 5% | Scavenger-Scout 5% | Skirmisher 4% | Scavenger-Skirmisher 4% | Tank 4% | Scavenger-Gladiator 3% | Hacker-Scout 3% | Scientist-Scout 3% | Scavenger-Tank 3% | Hacker-Skirmisher Dominant Class ---------------- Mutant | -10/Materials Mutant | -10/Subcaves Tank | -8/Materials Skirmisher | -7/Factory Skirmisher | -7/Waste Skirmisher | -7/Factory Gladiator | -7/Lower Caves Gladiator | -7/Zion Gladiator | -6/Proximity Caves Derelict-Gladiator | -6/Factory Commander-Gladiator | -6/Extension Commander-Gladiator | -6/Cetus Commander-Gladiator | -6/Archives Scavenger-Gladiator | -6/Hub_04(d) Scavenger-Mutant | -5/Factory Derelict-Skirmisher | -5/Upper Caves Hacker-Skirmisher | -5/Upper Caves Commander-Scout | -5/Warlord Scavenger-Skirmisher | -4/Proximity Caves Scavenger-Scout | -4/Factory Scientist-Scout | -4/Upper Caves Hacker-Scout | -4/Upper Caves Hacker-Scout | -4/Zhirov Hacker-Mutant | -3/Proximity Caves Messiah-Tank | -3/Research Scavenger-Scout | -3/Testing Scientist-Scout | -2/Research Messiah-Scout | -2/Quarantine Scavenger-Skirmisher | -2/Protoforge Scout | -1/Access Scavenger-Gunner | -1/Command Tank | -1/Access_0 Resources | -11 -10 -10 -8 -7 -7 -7 -7 -7 -6 -6 -6 -6 -6 -6 -5 -5 -5 -5 -4 -4 -4 -4 -4 -3 -3 -3 -2 -2 -2 -1 -1 -1 ----------- Run | Yrd Mat Sub Mat Fac Was Fac Low Zio Pro Fac Ext Cet Arc Hub Fac Upp Upp War Pro Fac Upp Upp Zhi Pro Res Tes Res Qua Frg Acc Com Ac0 Matter Collected 27016 | 243 483 288 432 733 . 1684 352 120 520 671 621 231 57 240 1625 563 192 264 592 1334 564 1198 289 946 1073 1766 420 251 3311 931 3054 1968 Remotely 1392 | . . . . . . . . . . . . . . . . . . . . . . . . . . . . . 250 157 985 . Salvage Created 25291 | . 632 189 556 652 . 2301 137 . 718 1407 990 273 225 674 1717 248 . 117 183 1558 359 628 289 544 859 1624 469 769 3181 766 2920 306 Parts 1039 | . 22 3 36 30 . 119 9 . 18 65 34 9 5 24 70 11 . 4 8 69 14 17 1 14 35 62 13 34 123 37 139 14 Haulers Intercepted 10 | . 2 . 4 1 . . . . . 1 . . . . . 1 . . . . . . . . . . 1 . . . . . Recyclers Shooed 10 | . 2 . 1 1 . 1 . . 1 . 1 . . . 2 . . . . 1 . . . . . . . . . . . . Parts Field Recycled . | . . . . . . . . . . . . . . . . . . . . . . . . . . . . . . . . . Retrieved Matter . | . . . . . . . . . . . . . . . . . . . . . . . . . . . . . . . . . Parts Self-Destructed 71 | . . . . . . . 6 3 28 . . . . . . 7 . . 3 . 8 7 1 8 . . . . . . . . Prevented 14 | . . . . . . . . . 9 . . . . . . . . . 2 . . 3 . . . . . . . . . . Parts Restored 18 | . . . . . . . . . . . . . . . . . . . . . . . . . . . . . 7 7 4 . Faulty 18 | . . . . . . . . . . . . . . . . . . . . . . . . . . . . . 7 7 4 . Kills | -11 -10 -10 -8 -7 -7 -7 -7 -7 -6 -6 -6 -6 -6 -6 -5 -5 -5 -5 -4 -4 -4 -4 -4 -3 -3 -3 -2 -2 -2 -1 -1 -1 ------- Run | Yrd Mat Sub Mat Fac Was Fac Low Zio Pro Fac Ext Cet Arc Hub Fac Upp Upp War Pro Fac Upp Upp Zhi Pro Res Tes Res Qua Frg Acc Com Ac0 Combat Hostiles Destroyed 426 | . 8 8 15 12 . 41 7 . 11 16 11 4 3 6 37 10 . 5 12 21 11 20 . 12 8 20 8 11 71 8 25 5 Melee 48 | . 2 . . . . 4 1 . 3 14 11 . . 3 4 . . . . 5 . . . . . . . . 1 . . . Guns 88 | . 2 2 2 1 . 26 . . . . . . . . 10 . . 3 . 4 1 2 . . . . . . 8 4 23 . Cannons 103 | . 2 4 13 11 . 3 . . . . . 4 3 2 3 . . . . 1 . 1 . . 3 11 6 10 18 3 . 5 AOE 145 | . 2 1 . . . 7 6 . 7 2 . . . . 18 10 . 2 11 7 9 16 . 12 . . 1 . 34 . . . Classes Destroyed 29 | . 7 1 3 1 . 2 1 . . . . . . . 2 . . 1 1 . 1 . . . 1 1 . 1 5 . 1 . Worker 20 | . 2 . 1 2 . 3 . . . 3 1 . . . 3 . . . . 2 . . . . 1 1 . . . . 1 . Builder 13 | . . . 1 1 . 4 . . . . . . . . 3 . . . . 2 . . . . . 1 . . . 1 . . Tunneler 2 | . 1 . 1 . . . . . . . . . . . . . . . . . . . . . . . . . . . . . Hauler 10 | . 2 . 4 1 . . . . . 1 . . . . . 1 . . . . . . . . . . 1 . . . . . Recycler 26 | . 3 . 1 1 . 6 . . . 3 2 . . 2 1 . . . . 3 . . . . . 2 . . . . 2 . Minesweeper 1 | . . . . . . . . . . . . . . . . . . . . . 1 . . . . . . . . . . . Mechanic 5 | . . . . . . . . . . . . . . . 2 . . . . . . . . . . . . . 3 . . . Operator 13 | . 1 . . . . 1 . . . 1 . . . . . . . . . . . . . . 2 1 . 2 1 1 3 . Drone 8 | . . . . . . . . . . . . . . . . . . . . . . . . . . . . . 8 . . . Watcher 31 | . 3 . . 2 . 4 . . 2 . . 1 . . 3 . . . . 3 . . . . 2 3 1 3 . 3 1 . Swarmer 68 | . . . 4 . . 11 4 . 3 2 . . . 1 5 5 . 1 5 4 2 6 . 5 . 1 2 . . 2 5 . Cutter 4 | . . . . . . . . . . . . . . . . . . . . . . . . . . . . . . . 4 . Saboteur 2 | . . . . . . . . . . . . . . . . . . . . . . . . . . . . . 2 . . . Grunt 139 | . 8 . 8 3 . 15 2 . 3 9 5 . . 2 17 5 . 3 1 6 6 3 . 5 2 5 . 4 19 5 3 . Brawler 14 | . . . . . . . 1 . . . . . . . 5 . . . . . 1 1 . . . . 1 . 5 . . . Duelist 9 | . . . . . . 1 . . . . . . . . 1 . . . . 1 1 3 . . . 1 . . . . 1 . Protector 4 | . . . . . . . . . . . . . . . 2 . . . . . . 1 . . . . . . 1 . . . Researcher 4 | . . . . . . . . . . . . . . . . . . . . . . . . . . 1 . 1 2 . . . Sentry 52 | . . . 3 3 . 5 . . 2 2 6 . 3 1 2 . . . 1 4 1 1 . . 5 . 1 . 9 . 3 . Specialist 2 | . . . . . . . . . . . . . . . . . . . 2 . . . . . . . . . . . . . Hunter 24 | . . . . . . 3 . . 3 1 . . . . 3 . . . 2 . . . . 2 . 4 . . 4 1 1 . Programmer 56 | . . . . 6 . 6 . . . 2 . . . . 2 . . . 1 6 . 2 . . . 9 4 6 7 . 5 . Heavy 1 | . . . . . . . . . . . . . . . . . . . . . . . . . . . . . . . 1 . Q-Series 1 | . . . . . . . . . . . . . . . . . . . . . . . . . . . . . 1 . . . Behemoth 1 | . . . . . . . . . . . . . . . . . . . . . . . . . 1 . . . . . . . Cetus Guard 4 | . . . . . . . . . . . . 4 . . . . . . . . . . . . . . . . . . . . M Guard 1 | . . . . . . . . . . . . . . . . . . . . . . . . . . . . . . . 1 . Enhanced Grunt 2 | . . . . . . . . . . . . . . . . . . . . . . . . . . . . . . . . 2 Enhanced Hunter 2 | . . . . . . . . . . . . . . . . . . . . . . . . . . . . . . . . 2 Lightning 2 | . . . . . . . . . . . . . . 2 . . . . . . . . . . . . . . . . . . Hotshot 4 | . . . . . . . . . . . . . . . . . . . . . . . . . . . . . 4 . . . Decapitator 7 | . . . . . . . . . . . . . . . . . . . . . . . . . . . . . 7 . . . Combat Programmer 1 | . . . . . . . . . . . . . . . . . . . . . . . . . . . . . . . 1 . Executioner 1 | . . . . . . . . . . . . . . . . . . 1 . . . . . . . . . . . . . . Alpha 7 1 | . . . . . . . . . . . . . . . . . . . . . . . . . . . . 1 . . . . V-Series 4 | . . . . . . . . . . . . . . . . . . . . . . . . . . . . . 4 . . . Subdweller 8 | . . 8 . . . . . . . . . . . . . . . . . . . . . . . . . . . . . . Thug 4 | . . . . . . . . . . . . . . . . . . . . . . 4 . . . . . . . . . . Best Kill Streak 13 | . 3 4 5 4 . 6 3 . 3 3 2 3 3 2 13 6 . 2 4 6 7 4 . 5 2 6 3 4 11 3 8 5 Combat Bots Only 10 | . 2 4 5 4 . 5 3 . 3 2 2 2 3 2 10 5 . 2 4 5 7 4 . 5 2 4 3 4 10 3 7 5 Max Kills in Single Turn 5 | . 1 1 2 2 . 2 3 . 2 2 1 1 1 1 5 3 . 1 2 4 2 3 . 3 1 2 1 1 4 1 2 1 Gunslinging 1 | . . . . . . . . . . . . . . . 1 . . . . . . . . . . . . . . . 1 . Exploded 4 | . 1 1 . . . 2 3 . 2 2 . . . . 4 3 . 1 2 4 2 3 . 3 . . 1 . 4 . . . Melee 1 | . 1 . . . . 1 1 . 1 1 1 . . 1 1 . . . . 1 . . . . . . . . 1 . . . Uniques/NPCs Destroyed 2 | . . . . . . . . . . . . . . . . . . . . . . . . . . . . . . . 1 1 MAIN.C Shell (-1/Command) A8 (-1/Access_0) Combat | -11 -10 -10 -8 -7 -7 -7 -7 -7 -6 -6 -6 -6 -6 -6 -5 -5 -5 -5 -4 -4 -4 -4 -4 -3 -3 -3 -2 -2 -2 -1 -1 -1 -------- Run | Yrd Mat Sub Mat Fac Was Fac Low Zio Pro Fac Ext Cet Arc Hub Fac Upp Upp War Pro Fac Upp Upp Zhi Pro Res Tes Res Qua Frg Acc Com Ac0 Hostile Shots Fired 3052 | . 48 52 49 109 3 466 17 . 33 180 141 22 3 140 196 13 2 172 48 152 15 24 . 57 35 120 29 58 345 29 121 373 Missed 1002 | . 13 19 15 33 . 167 8 . 14 54 46 2 . 40 44 5 1 62 11 46 8 10 . 26 17 46 8 19 109 9 33 137 Deflected 17 | . . . . . . . . . . . . . . . . . . . . . . . . . . . . . 10 . 5 2 Hits 2050 | . 35 33 34 76 3 299 9 . 19 126 95 20 3 100 152 8 1 110 37 106 7 14 . 31 18 74 21 39 236 20 88 236 Melee 29 | . . . . . 3 7 . . . . . . . . 3 . . 3 . . . 1 . . . 1 . . 4 . 7 . Projectile 2021 | . 35 33 34 76 . 292 9 . 19 126 95 20 3 100 149 8 1 107 37 106 7 13 . 31 18 73 21 39 232 20 81 236 AOE 47 | . . . . 1 . . . . . . . . . . . . . . . 1 . . . . . . . . 31 . 14 . Critical Strikes 105 | . . . 2 1 2 6 . . 1 2 5 1 . 11 6 . . 9 1 6 . 1 . 1 1 6 2 5 12 1 14 9 Actively Blocked 7 | . . . . . . . . . . . . . . 1 1 . . 2 . . . . . . . 1 . 1 . . . 1 Part Disruptions 8 | . . . . 1 . . . . . . . . . 1 . . . . 2 . . . . . . . . 1 1 . 1 1 Damage Taken 40770 | . 438 833 522 1035 142 3768 111 . 325 1654 1188 473 131 2485 2812 119 32 2034 590 2227 155 311 . 706 434 1082 303 635 5578 473 3560 6614 Core 4198 | . 63 177 69 146 . 379 26 . . 199 35 72 19 184 351 16 . 326 72 461 . 30 . 60 69 16 4 . 546 84 384 410 Absorbed by Shields 1408 | . . . . . . . . . . 4 . 101 22 . . . . 99 . . . . . . . 83 93 . 58 . . 948 Reduced by Siege Mode 1149 | . . . . . . . . . . . . . . . . . . . . . . . . . . . . . 224 . . 925 Redirected to Shielding 1049 | . 4 39 . . . . . . . . . . . 106 99 17 . 73 83 . . . . . 84 68 . 162 92 . . 222 Ignored by Resistances 1999 | . . . . . . . . . . 61 46 . . . 220 . . . 17 105 . . . . . 433 238 268 377 . 186 48 Regen/Repaired (Parts) 5785 | . 53 . . 232 . 167 . 348 . 248 . . . . . . . 218 . 409 . . . . . . 157 142 1001 167 1238 1405 Core Remaining (%) 49 | 100 . 4 87 . . . . . 21 . . . . 40 . . . . 23 . . . . 52 . 86 . . 49 . . 34 Volleys Fired 1352 | . 58 46 59 38 . 110 6 . 14 3 10 18 6 26 88 20 6 13 31 41 18 48 . 15 50 105 30 87 146 54 101 105 Largest 4 | . 2 2 2 3 . 3 1 . 1 1 1 1 1 1 2 1 1 2 1 2 2 2 . 1 2 1 1 3 3 2 3 4 Hottest 370 | . 80 160 112 120 . 240 80 . 80 80 33 48 48 48 98 98 98 120 80 125 125 125 . 80 176 130 130 360 370 172 320 280 Shots Fired 2161 | . 98 70 90 105 . 248 6 . 14 3 10 18 6 25 135 20 7 15 31 54 23 55 . 16 53 105 30 90 228 56 264 286 Gun 870 | . 76 16 31 32 . 205 . . . . 10 . . . 97 . 2 12 . 42 9 13 . 1 6 . . . 68 41 209 . Cannon 1102 | . 19 51 59 73 . 33 . . . . . 18 6 25 19 13 5 1 10 7 . 4 . 1 47 105 30 90 135 15 50 286 Launcher 184 | . 3 3 . . . 10 6 . 14 3 . . . . 19 7 . 2 21 5 14 38 . 14 . . . . 25 . . . Special 5 | . . . . . . . . . . . . . . . . . . . . . . . . . . . . . . . 5 . Kinetic 1169 | . 40 28 59 105 . 147 . . . . 10 18 6 25 115 . 3 . . 4 . . . 1 5 . . . 68 41 236 258 Thermal 546 | . 55 39 31 . . 91 . . . . . . . . 1 13 4 1 . 2 . . . 1 3 55 22 61 101 15 23 28 Explosive 184 | . 3 3 . . . 10 6 . 14 3 . . . . 19 7 . 2 21 5 14 38 . 14 . . . . 25 . . . Electromagnetic 231 | . . . . . . . . . . . . . . . . . . . 10 29 9 17 . . 45 50 8 29 34 . . . Entropic 26 | . . . . . . . . . . . . . . . . . . 12 . 14 . . . . . . . . . . . . Robot Hit Streak 41 | . 11 16 11 9 . 21 2 . 4 5 4 5 5 3 19 7 1 9 5 11 7 3 . 4 5 12 4 9 23 21 25 41 Robot Miss Streak 8 | . 4 3 8 4 . 5 . . . . 1 2 1 4 3 . 2 4 3 2 1 2 . 4 2 4 2 3 5 1 8 3 Penetration Max 3 | . . . . . . 1 . . . . . 1 . . 1 . . . . 3 . . . . 1 1 . . 1 1 3 1 Secondary Targets 11 | . 1 . . . . 4 . . . . . . . . 1 . . 1 . . . . . . . . . . 1 . 3 . Max Gunslinging Chain 1 | . 1 . . . . 1 . . . . . . . . 1 . . 1 . . . . . . . . . . 1 . 1 . Capacitor 9 | . . . . . . . . . . . . . . . . . . . . . . . . . . . . . . 9 . . Shots Hit Robots 1653 | . 81 49 83 56 . 193 2 . 29 57 43 12 5 25 97 6 1 12 12 68 8 13 4 13 31 49 15 39 150 44 222 234 Core Hits 1065 | . 31 15 88 39 . 112 9 . 31 26 18 8 3 9 108 22 . 9 24 47 25 58 4 55 10 21 10 13 128 21 75 46 Critical Kills 58 | . . 1 . . . . . . 1 . . 5 3 2 7 1 . . . 3 . . . . . 2 1 1 7 3 19 2 Critical Parts Destroyed 76 | . 3 . . . . . . . 2 . 5 4 1 7 12 . . 1 . 1 . . . . . . . . 4 1 28 7 Critical Strikes 208 | . 6 7 . 3 . 3 . . 8 7 8 11 4 9 21 1 1 1 1 6 . . . . 5 8 1 1 12 4 58 22 Burn 7 | . 3 4 . . . . . . . . . . . . . . . . . . . . . . . . . . . . . . Meltdown 13 | . . 1 . . . . . . . . . . . . . 1 . . . . . . . . . 2 1 1 4 1 2 . Destroy 134 | . 1 . . . . . . . . . 3 11 4 8 19 . 1 . . 2 . . . . . . . . 7 3 54 21 Blast 6 | . . 2 . 3 . . . . . . . . . . . . . . . . . . . . . . . . . . . 1 Corrupt 13 | . . . . . . . . . . . . . . . . . . . 1 . . . . . 5 6 . . 1 . . . Smash 13 | . 2 . . . . . . . 3 . 3 . . 1 2 . . . . 2 . . . . . . . . . . . . Sever 20 | . . . . . . 2 . . 5 7 2 . . . . . . . . 2 . . . . . . . . . . 2 . Impale 1 | . . . . . . 1 . . . . . . . . . . . . . . . . . . . . . . . . . . Detonate 1 | . . . . . . . . . . . . . . . . . . 1 . . . . . . . . . . . . . . Melee Attacks 468 | . 28 . . . . 46 5 2 34 110 52 . . 24 35 . . . 1 64 2 6 4 5 . . . . 13 5 32 . Impact 117 | . 26 . . . . 3 3 1 8 13 8 . . 6 17 . . . 1 31 . . . . . . . . . . . . Slashing 309 | . . . . . . 23 1 1 26 97 44 . . 18 16 . . . . 33 . . . . . . . . 13 5 32 . Piercing 40 | . . . . . . 20 1 . . . . . . . 2 . . . . . 2 6 4 5 . . . . . . . . Sneak Attacks 47 | . 5 . . . . 10 . . . 11 6 . . 5 1 . . . . 4 1 2 . . . . . . . . 2 . Combat Hostiles 6 | . . . . . . . . . . 3 . . . 3 . . . . . . . . . . . . . . . . . . Follow-up Attacks 55 | . . . . . . 6 1 . 11 15 16 . . 5 1 . . . . . . . . . . . . . . . . . Damage Inflicted 91623 | . 1396 1238 1699 1393 . 5609 702 . 3136 3379 1913 355 105 1064 6732 1251 58 1060 1698 4147 2017 4017 335 2338 1583 4030 1435 2658 14926 2199 8868 10282 Guns 14673 | . 582 174 627 324 . 3097 . . . . 51 . . . 1924 . 30 623 . 1361 118 124 . . 89 . . . 1509 1297 2743 . Cannons 32880 | . 214 718 1072 1069 . 305 . . . . . 355 105 262 327 106 28 31 210 260 . 82 . . 1465 3874 1320 2658 5095 902 2140 10282 Explosions 27089 | . 85 346 . . . 710 655 . 1402 381 . . . . 3752 1145 . 406 1488 1110 1780 3407 . 2066 29 156 115 . 8056 . . . Melee 16981 | . 515 . . . . 1497 47 . 1734 2998 1862 . . 802 729 . . . . 1416 119 404 335 272 . . . . 266 . 3985 . Ramming . | . . . . . . . . . . . . . . . . . . . . . . . . . . . . . . . . . Kinetic 24310 | . 334 386 1072 1393 . 1751 . . . . 51 355 105 262 2251 . 58 . . 99 . . . . . . . . 1509 1297 4167 9220 Thermal 16144 | . 462 506 627 . . 1651 . . . . . . . . . 106 . 76 . 641 . . . . 56 1875 1270 1873 4321 902 716 1062 Explosive 26149 | . 85 346 . . . 710 655 . 1402 381 . . . . 3752 1145 . 361 1488 515 1780 3407 . 2066 . . . . 8056 . . . Electromagnetic 6618 | . . . . . . . . . . . . . . . . . . . 210 678 118 206 . . 1527 2155 165 785 774 . . . Impact 2954 | . 515 . . . . 226 47 . 573 89 205 . . 158 446 . . . . 695 . . . . . . . . . . . . Slashing 12371 | . . . . . . 745 . . 1161 2909 1657 . . 644 283 . . . . 721 . . . . . . . . 266 . 3985 . Piercing 1656 | . . . . . . 526 . . . . . . . . . . . . . . 119 404 335 272 . . . . . . . . Entropic 1421 | . . . . . . . . . . . . . . . . . . 623 . 798 . . . . . . . . . . . . Highest Corruption 19 | . . . 3 4 12 16 12 12 . 6 . . . 14 3 1 1 1 2 7 7 7 7 7 . 5 . 1 19 . 2 1 Average Corruption 5 | . . . 1 3 10 12 12 12 . 3 . . . 7 1 1 1 1 1 5 7 7 7 7 . 4 . 1 3 . 1 1 Corruption Purged 62 | . . . . . . 10 . . . 6 . . . . 3 . . . . . . . . . . . . . 39 . 3 1 Corruption Blocked . | . . . . . . . . . . . . . . . . . . . . . . . . . . . . . . . . . Effects 346 | . . . 2 7 4 103 27 2 . 13 . . . 5 5 4 7 . 3 31 17 29 4 23 . 26 . 2 27 . 4 1 Message Errors 83 | . . . 1 3 . 29 9 1 . 4 . . . . . . . . 1 9 3 4 1 4 . 7 . . 5 . 1 1 Matter Fused 85 | . . . . 1 1 28 8 . . 3 . . . 1 2 2 . . . 4 4 9 . 6 . 8 . . 6 . 2 . Heat Flow Errors 40 | . . . . . 1 11 4 . . 3 . . . . 1 . 3 . . 4 2 3 1 3 . 2 . . 2 . . . Energy Discharges 47 | . . . 1 1 . 10 4 1 . 1 . . . 1 1 2 . . 1 5 3 5 2 3 . 3 . . 3 . . . Parts Rejected 6 | . . . . . 1 1 1 . . . . . . . . . . . . . . . . 1 . 1 . . 1 . . . Parts Fused 1 | . . . . . . 1 . . . . . . . . . . . . . . . . . . . . . . . . . . Data Loss (minor) 36 | . . . . . 1 5 1 . . 2 . . . 2 . . 2 . . 4 2 1 . 5 . 2 . 2 7 . . . Data Loss (major) 17 | . . . . . . 5 . . . . . . . . 1 . . . . 3 1 3 . . . 2 . . 2 . . . Misfires 16 | . . . . . . 8 . . . . . . . . . . 1 . . 2 1 2 . 1 . . . . 1 . . . Alerts 8 | . . . . 1 . 1 . . . . . . . . . . 1 . 1 . 1 2 . . . 1 . . . . . . Weapon Failures 7 | . . . . 1 . 4 . . . . . . . 1 . . . . . . . . . . . . . . . . 1 . Overload Shots . | . . . . . . . . . . . . . . . . . . . . . . . . . . . . . . . . . Overflow Damage 5540 | . 125 . . . . 287 . . 311 247 345 . . 108 282 27 . 1 122 308 41 166 . 81 103 634 135 412 1002 71 701 31 Projectiles 2086 | . 8 . . . . . . . . . . . . . 24 . . . 17 . . . . . 103 624 135 412 661 71 . 31 Explosions 871 | . . . . . . 81 . . 37 . . . . . 56 27 . 1 105 112 41 43 . 17 . 10 . . 341 . . . Melee 2583 | . 117 . . . . 206 . . 274 247 345 . . 108 202 . . . . 196 . 123 . 64 . . . . . . 701 . Knockbacks 87 | . 4 3 24 11 . . . . . . . . . 6 6 . . . . 1 . . . . . . . . . . 2 30 Impact 7 | . 2 . . . . . . . . . . . . 1 3 . . . . 1 . . . . . . . . . . . . Kinetic 76 | . 2 3 22 9 . . . . . . . . . 5 3 . . . . . . . . . . . . . . . 2 30 Secondary 4 | . . . 2 2 . . . . . . . . . . . . . . . . . . . . . . . . . . . . Self-Inflicted Damage 847 | . . . . . . 68 . . . 38 . . . . 272 . . . . . . . . 83 . 85 . . 301 . . . Shots 21 | . . . . . . 2 . . . 2 . . . . 9 . . . . . . . . 3 . 1 . . 4 . . . Rammed . | . . . . . . . . . . . . . . . . . . . . . . . . . . . . . . . . . Targets Rammed . | . . . . . . . . . . . . . . . . . . . . . . . . . . . . . . . . . Kicked . | . . . . . . . . . . . . . . . . . . . . . . . . . . . . . . . . . Crushed . | . . . . . . . . . . . . . . . . . . . . . . . . . . . . . . . . . Highest Temperature 479 | . 208 124 360 254 243 403 269 . 172 212 18 36 18 48 390 192 298 200 362 286 256 409 158 232 479 237 300 66 234 190 264 140 Average Temperature 68 | . 53 61 102 70 144 100 89 . 60 75 9 13 9 17 86 32 49 53 70 55 74 100 72 68 90 55 84 34 89 124 43 62 Received Heat Transfer 5538 | . 234 204 234 285 . 807 21 . 18 420 459 . 4 322 553 . . 299 18 367 30 18 . 102 396 15 6 117 429 45 135 . Effects 18 | . . . 4 . . 1 . . . . . . . . 6 . . . 4 . . 1 . . 2 . . . . . . . Shutdowns 3 | . . . . . . . . . . . . . . . 1 . . . 2 . . . . . . . . . . . . . Energy Bleed 3 | . . . 1 . . 1 . . . . . . . . 1 . . . . . . . . . . . . . . . . . Interference 8 | . . . 3 . . . . . . . . . . . 3 . . . 2 . . . . . . . . . . . . . Matter Decay 2 | . . . . . . . . . . . . . . . 1 . . . . . . 1 . . . . . . . . . . Short Circuit 1 | . . . . . . . . . . . . . . . . . . . . . . . . . 1 . . . . . . . Damage (minor) 1 | . . . . . . . . . . . . . . . . . . . . . . . . . 1 . . . . . . . Siege Activations 8 | . . . . . . . . . . . . . . . . . . . . . . . . . . . . . 1 . 1 6 Total Turns 271 | . . . . . . . . . . . . . . . . . . . . . . . . . . . . . 28 . 1 242 Longest Duration 92 | . . . . . . . . . . . . . . . . . . . . . . . . . . . . . 28 . 1 92 Martial Activations . | . . . . . . . . . . . . . . . . . . . . . . . . . . . . . . . . . Shielding Activations . | . . . . . . . . . . . . . . . . . . . . . . . . . . . . . . . . . Robots Disrupted 3 | . . . . . . . . . . . . . . . . . . . . . . . . . . 2 . . 1 . . . Combat Hostiles 3 | . . . . . . . . . . . . . . . . . . . . . . . . . . 2 . . 1 . . . Robots Corrupted 37 | . 3 . . . . 2 . . . . . . . 1 2 . . . 1 6 1 1 . . 6 7 . 3 4 . . . Combat Hostiles 26 | . . . . . . 1 . . . . . . . 1 2 . . . 1 4 1 1 . . 5 7 . 1 2 . . . Parts Fried 71 | . 5 . . . . 2 . . 1 . 1 . . 1 7 . . . . 10 . . . . 11 22 1 4 6 . . . Impact Corruptions 25 | . 5 . . . . 2 . . 4 . 3 . . 2 4 . . . . 5 . . . . . . . . . . . . Robots Melted 13 | . . 1 . . . . . . . . . . . . . 1 . . . . . . . . . 2 1 1 4 1 2 . Combat Hostiles 11 | . . 1 . . . . . . . . . . . . . . . . . . . . . . . 2 1 . 4 1 2 . Parts Melted 32 | . 3 5 . . . 8 . . . 1 . . . . . . . . . 1 . . . . 1 2 2 2 4 3 . . Heat Transferred 14175 | . 1591 1148 560 . . 3500 . . . . . . . . . 150 . 100 . 437 . . . . 87 850 650 937 2626 550 403 586 Parts Sabotaged . | . . . . . . . . . . . . . . . . . . . . . . . . . . . . . . . . . Parts Stolen . | . . . . . . . . . . . . . . . . . . . . . . . . . . . . . . . . . Parts Stripped . | . . . . . . . . . . . . . . . . . . . . . . . . . . . . . . . . . Power Chain Reactions 5 | . . . . . . . . . . . . . . . . . . . . 1 . . . . 1 2 1 . . . . . Alert | -11 -10 -10 -8 -7 -7 -7 -7 -7 -6 -6 -6 -6 -6 -6 -5 -5 -5 -5 -4 -4 -4 -4 -4 -3 -3 -3 -2 -2 -2 -1 -1 -1 ------- Run | Yrd Mat Sub Mat Fac Was Fac Low Zio Pro Fac Ext Cet Arc Hub Fac Upp Upp War Pro Fac Upp Upp Zhi Pro Res Tes Res Qua Frg Acc Com Ac0 Maximum Alert Level 5 | . . . 1 . . 2 . . . 2 3 1 1 4 4 . . . . 2 . . . . 1 2 1 1 5 4 5 . Low Security (%) 49 | 100 100 . 72 100 100 49 . . . 56 52 . 28 14 . . . . . 57 . . . . 90 22 . 28 34 . 68 . Level 1 19 | . . . 27 . . 25 . . . 35 2 100 71 15 . . . . . 39 . . . . 9 28 100 71 . . . . Level 2 15 | . . . . . . 25 . . . 7 45 . . 19 42 . . . . 2 . . . . . 49 . . 16 . . . Level 3 7 | . . . . . . . . . . . . . . 27 38 . . . . . . . . . . . . . 26 31 11 . Level 4 5 | . . . . . . . . . . . . . . 23 19 . . . . . . . . . . . . . 14 68 10 . Level 5 . | . . . . . . . . . . . . . . . . . . . . . . . . . . . . . 7 . . . High Security . | . . . . . . . . . . . . . . . . . . . . . . . . . . . . . . . 8 . Max Security . | . . . . . . . . . . . . . . . . . . . . . . . . . . . . . . . . . Peak Influence 1796 | . 97 . 269 130 36 570 . . . 416 698 370 275 1239 1181 . . . . 414 . . . . 221 510 383 308 1796 1401 1695 . Initial 1061 | . . . . 9 36 . . . . 5 187 368 131 81 568 . . . . . . . . . 91 107 276 172 152 1061 884 . Average 364 | . 34 . 111 41 14 228 . . . 185 341 299 228 716 781 . . . . 194 . . . . 157 332 325 232 689 1189 1240 . Influence Increases 19616 | . 531 . 564 574 . 1408 190 . 653 902 1308 332 164 1526 1321 215 . 635 265 1081 235 484 5 460 536 1013 407 523 2411 596 1277 . Destroy 0b10 Robot/C 9880 | . 160 . 300 240 . 820 140 . 400 340 720 160 80 560 700 200 . 160 240 480 220 300 . 240 260 420 180 240 1400 220 700 . Destroy 0b10 Robot/NC 760 | . 60 . 40 35 . 90 . . 40 40 35 10 . 45 70 5 . . . 50 5 10 5 10 25 50 10 25 40 25 35 . Destroy Leader 1604 | . 60 . 68 76 . 208 20 . 20 92 56 . . 134 126 10 . . 10 116 10 30 . 30 84 76 34 36 150 26 132 . Allied During Kill 1935 | . . . . . . . . . 193 2 428 133 80 657 . . . 55 . 19 . 9 . . 46 8 17 5 . 77 206 . Trap Triggered on 0b10 10 | . . . . . . . . . . 10 . . . . . . . . . . . . . . . . . . . . . . Successful Hack 343 | . 23 . 21 59 . 47 . . . 6 21 . . . 28 . . . . 40 . . . . 24 24 16 1 . 27 6 . Select Force Hacks 60 | . 30 . . 30 . . . . . . . . . . . . . . . . . . . . . . . . . . . . Disable Machine 1200 | . 45 . . 75 . 90 . . . 60 30 15 . 60 30 . . . . 135 . . . . 60 150 15 90 225 75 45 . Anti-Garrison Action 350 | . . . . . . . . . . 200 . . . . . . . . . . . . . . . . . . 150 . . . Destroy Structure 1554 | . 18 . . 14 . 63 . . . 47 18 14 4 55 292 . . . . 166 . . . . 22 90 90 81 401 86 93 . Partial Spotted 165 | . . . 15 . . . . . . . . . . . 15 . . . . . . . . . . 60 30 15 . . 30 . Lose Combat Pursuer 1755 | . 135 . 120 45 . 90 30 . . 105 . . . 15 60 . . 420 15 75 . 135 . 180 15 135 15 30 45 60 30 . Influence Decreases 18083 | . 469 62 541 494 103 1116 453 29 644 527 1033 663 257 600 1305 779 480 527 506 711 419 538 137 324 481 712 592 559 912 983 1127 . Entered New Map 4726 | . . 30 . 14 67 . 109 29 . 4 197 291 197 154 593 437 118 133 241 . 137 36 132 . 45 84 216 135 119 709 499 . Time Decay 9915 | . 459 12 361 374 26 479 334 . 384 453 636 222 50 246 542 342 362 154 236 511 262 452 5 294 356 518 356 374 623 254 238 . Lost Part 1389 | . 10 20 30 10 10 200 10 . . 50 20 10 10 120 170 . . 70 29 160 . 30 . 30 20 70 . 30 170 20 90 . Lost Ally 1370 | . . . . . . . . . 260 20 180 140 . 80 . . . 170 . 40 20 20 . . 60 40 20 20 . . 300 . Purge Threat 683 | . . . 150 96 . 437 . . . . . . . . . . . . . . . . . . . . . . . . . . Squads Dispatched 103 | . 4 . 2 7 . 12 . . . 6 2 . . 9 8 . . . . 4 . 1 . . 4 10 3 5 13 5 8 . Investigation 19 | . 2 . 1 3 . 1 . . . 2 1 . . 1 1 . . . . 2 . . . . . 2 . . . 2 1 . Extermination 34 | . . . . 4 . 5 . . . 2 . . . 2 1 . . . . 2 . . . . 2 3 3 3 5 1 1 . Reinforcement 24 | . 2 . 1 . . 5 . . . 2 1 . . 4 1 . . . . . . . . . 2 3 . 2 . . 1 . Assault 24 | . . . . . . 1 . . . . . . . 1 5 . . . . . . 1 . . . 2 . . 7 2 5 . Garrison 2 | . . . . . . . . . . . . . . 1 . . . . . . . . . . . . . . 1 . . . Intercept . | . . . . . . . . . . . . . . . . . . . . . . . . . . . . . . . . . Searches Triggered . | . . . . . . . . . . . . . . . . . . . . . . . . . . . . . . . . . Unchained Authorized 1 | . . . . . . . . . . . . . . . . . . . . . . . . . . . . . . 1 . . Construction Impeded 3 | . . . . . . 1 . . . . . . . 1 1 . . . . . . . . . . . . . . . . . Haulers Reinforced 3 | . . . . . . . . . . 1 . . . 2 . . . . . . . . . . . . . . . . . . Active Scanning Responses . | . . . . . . . . . . . . . . . . . . . . . . . . . . . . . . . . . Cargo Convoy Interrupts 1 | . . . . . . . . . . 1 . . . . . . . . . . . . . . . . . . . . . . Stealth | -11 -10 -10 -8 -7 -7 -7 -7 -7 -6 -6 -6 -6 -6 -6 -5 -5 -5 -5 -4 -4 -4 -4 -4 -3 -3 -3 -2 -2 -2 -1 -1 -1 --------- Run | Yrd Mat Sub Mat Fac Was Fac Low Zio Pro Fac Ext Cet Arc Hub Fac Upp Upp War Pro Fac Upp Upp Zhi Pro Res Tes Res Qua Frg Acc Com Ac0 Distress Signals 26 | . 3 . 5 . . 2 . . 1 1 1 2 . 4 1 . . 1 . . . . . . . 2 1 . . 2 . . Communications Jammed . | . . . . . . . . . . . . . . . . . . . . . . . . . . . . . . . . . Distress Signals . | . . . . . . . . . . . . . . . . . . . . . . . . . . . . . . . . . Times Spotted 786 | . 24 9 31 17 6 61 9 . 18 27 38 8 3 40 50 8 1 93 11 32 7 19 . 24 16 44 13 23 82 21 41 10 Peak Tracking Total 37 | . 3 3 6 4 6 6 4 . 4 4 5 5 1 14 10 5 1 37 3 5 7 7 . 6 4 6 3 4 10 7 7 3 Tactical Retreats 69 | . 6 . 4 1 . 4 2 . . 4 . . . 1 4 . . 7 1 4 . 7 . 7 1 5 1 2 3 3 2 . Traps | -11 -10 -10 -8 -7 -7 -7 -7 -7 -6 -6 -6 -6 -6 -6 -5 -5 -5 -5 -4 -4 -4 -4 -4 -3 -3 -3 -2 -2 -2 -1 -1 -1 ------- Run | Yrd Mat Sub Mat Fac Was Fac Low Zio Pro Fac Ext Cet Arc Hub Fac Upp Upp War Pro Fac Upp Upp Zhi Pro Res Tes Res Qua Frg Acc Com Ac0 Traps Triggered 47 | . 1 . 1 4 . 7 . . . 4 3 . . 2 1 . . . . 5 . . . . 1 3 3 . 12 . . . Indirectly . | . . . . . . . . . . . . . . . . . . . . . . . . . . . . . . . . . Trap Hack Attempts . | . . . . . . . . . . . . . . . . . . . . . . . . . . . . . . . . . Triggered . | . . . . . . . . . . . . . . . . . . . . . . . . . . . . . . . . . Disarmed . | . . . . . . . . . . . . . . . . . . . . . . . . . . . . . . . . . Reprogrammed 4 | . . . . . . 4 . . . . . . . . . . . . . . . . . . . . . . . . . . Reused 4 | . . . . . . . . . . 1 . . . . . . . . . . . 3 . . . . . . . . . . Traps Extracted 4 | . . . . . . 4 . . . . . . . . . . . . . . . . . . . . . . . . . . Installed 11 | . . . . . . . . . . 4 2 . . . . . . . . . . 5 . . . . . . . . . . Triggered 4 | . . . . . . . . . . 1 . . . . . . . . . . . 3 . . . . . . . . . . Fabricated Traps 5 | . . . . . . . . . . . 5 . . . . . . . . . . . . . . . . . . . . . Most Traps Carried 8 | . . . . . . 4 4 4 4 4 6 6 6 6 6 6 6 6 6 6 8 8 3 3 3 3 3 3 . . . . Machines | -11 -10 -10 -8 -7 -7 -7 -7 -7 -6 -6 -6 -6 -6 -6 -5 -5 -5 -5 -4 -4 -4 -4 -4 -3 -3 -3 -2 -2 -2 -1 -1 -1 ---------- Run | Yrd Mat Sub Mat Fac Was Fac Low Zio Pro Fac Ext Cet Arc Hub Fac Upp Upp War Pro Fac Upp Upp Zhi Pro Res Tes Res Qua Frg Acc Com Ac0 Machines Disabled 96 | . 3 . . 5 . 6 . . 3 4 2 1 . 4 2 . . . 1 9 . . . . 4 11 1 7 21 5 5 2 Max in Single Turn 5 | . 1 . . 2 . 1 . . 1 2 1 1 . 1 1 . . . 1 5 . . . . 1 1 1 1 2 1 1 1 Garrison Access 14 | . . . 1 3 . 1 . . . 1 . . . . 1 . . . . 2 . . . . 1 1 . 1 1 1 . . Network Hub 1 | . . . . . . . . . . . . . . 1 . . . . . . . . . . . . . . . . . . Machines Repaired . | . . . . . . . . . . . . . . . . . . . . . . . . . . . . . . . . . Machines Dismantled 3 | . . . . . . . . . . . 1 1 . 1 . . . . . . . . . . . . . . . . . . Machines Sabotaged . | . . . . . . . . . . . . . . . . . . . . . . . . . . . . . . . . . Overloaded Fab Kills . | . . . . . . . . . . . . . . . . . . . . . . . . . . . . . . . . . Hacking | -11 -10 -10 -8 -7 -7 -7 -7 -7 -6 -6 -6 -6 -6 -6 -5 -5 -5 -5 -4 -4 -4 -4 -4 -3 -3 -3 -2 -2 -2 -1 -1 -1 --------- Run | Yrd Mat Sub Mat Fac Was Fac Low Zio Pro Fac Ext Cet Arc Hub Fac Upp Upp War Pro Fac Upp Upp Zhi Pro Res Tes Res Qua Frg Acc Com Ac0 Machines Accessed 106 | . 9 . 7 17 . 13 . . 2 8 4 . . . 4 . 1 3 . 9 . 1 4 . 3 6 1 5 2 6 1 . Terminals 32 | . 7 . 5 7 . 3 . . 1 1 3 . . . . . . . . . . . . . . . . 2 1 1 1 . Fabricators 12 | . . . . 1 . 3 . . . 1 . . . . . . . . . 2 . . . . 1 2 . . . 2 . . Repair Stations 14 | . 1 . . 2 . 3 . . . 2 1 . . . 1 . . . . 2 . . . . . 1 . . . 1 . . Recycling Units 9 | . 1 . . 3 . 1 . . 1 . . . . . . . . . . 2 . . . . . . . . . 1 . . Scanalyzers 14 | . . . 1 1 . 2 . . . 2 . . . . 1 . . . . 1 . . . . 1 2 1 2 . . . . Garrison Access 16 | . . . 1 3 . 1 . . . 2 . . . . 2 . . . . 2 . . . . 1 1 . 1 1 1 . . Total Hacks 298 | . 23 . 24 52 . 29 . . 2 18 12 . . . 24 . 1 6 . 32 . 1 17 . 4 11 7 11 6 13 5 . Successful 172 | . 14 . 14 30 . 15 . . 2 8 3 . . . 16 . 1 6 . 21 . 1 17 . 2 5 4 4 5 3 1 . Failed 124 | . 9 . 10 22 . 14 . . . 10 9 . . . 7 . . . . 11 . . . . 2 5 3 7 1 10 4 . Catastrophic 22 | . 3 . 1 3 . 1 . . . 3 . . . . 2 . . . . 2 . . . . 1 2 . 1 1 2 . . Database Lockouts 2 | . . . . . . . . . . . . . . . 1 . . . . . . . . . . 1 . . . . . . Manual 266 | . 15 . 15 20 . 5 . . . 17 16 1 . 19 13 . . . 1 16 . . . . 27 22 10 28 7 24 10 . Terminals 99 | . 20 . 17 28 . 7 . . 1 1 9 . . . . . . . . . . . . . . . . 3 5 3 5 . Fabricators 26 | . . . . 3 . 7 . . . 1 . . . . . . . . . 5 . . . . 1 5 . . . 4 . . Repair Stations 29 | . 2 . . 5 . 5 . . . 4 3 . . . 2 . . . . 6 . . . . . 1 . . . 1 . . Recycling Units 19 | . 1 . . 7 . 3 . . 1 . . . . . . . . . . 5 . . . . . . . . . 2 . . Scanalyzers 67 | . . . 6 6 . 4 . . . 6 . . . . 17 . . . . 10 . . . . 2 4 7 5 . . . . Garrison Access 33 | . . . 1 3 . 3 . . . 6 . . . . 5 . . . . 6 . . . . 1 1 . 3 1 3 . . Terminal Hacks 57 | . 5 . 3 6 . 4 . . 1 1 3 . . . . . 1 6 . . . 1 17 . . . . 2 5 1 1 . Record 12 | . . . . . . . . . . . . . . . . . . . . . . . 5 . . . . 2 5 . . . Part Schematic 5 | . . . . 1 . . . . . . . . . . . . . . . . . . 4 . . . . . . . . . Robot Analysis 4 | . . . . . . . . . . . . . . . . . . . . . . . 4 . . . . . . . . . Prototype ID Bank 8 | . . . . . . . . . . . . . . . . . . 4 . . . . 4 . . . . . . . . . Open Door 10 | . . . . . . . . . 1 1 3 . . . . . 1 2 . . . 1 . . . . . . . 1 . . Level Access Points 1 | . . . . 1 . . . . . . . . . . . . . . . . . . . . . . . . . . . . Branch Access Points 2 | . . . 1 1 . . . . . . . . . . . . . . . . . . . . . . . . . . . . Terminal Index 1 | . 1 . . . . . . . . . . . . . . . . . . . . . . . . . . . . . . . Alert Level 1 | . . . 1 . . . . . . . . . . . . . . . . . . . . . . . . . . . . . Unreport Threat 5 | . . . 1 1 . 3 . . . . . . . . . . . . . . . . . . . . . . . . . . Locate Traps 3 | . 2 . . 1 . . . . . . . . . . . . . . . . . . . . . . . . . . . . Reprogram Traps 1 | . . . . . . 1 . . . . . . . . . . . . . . . . . . . . . . . . . . Registered Components 1 | . 1 . . . . . . . . . . . . . . . . . . . . . . . . . . . . . . . Registered Prototypes 1 | . . . . 1 . . . . . . . . . . . . . . . . . . . . . . . . . . . . Zone Layout 1 | . 1 . . . . . . . . . . . . . . . . . . . . . . . . . . . . . . . Disengage Seal 1 | . . . . . . . . . . . . . . . . . . . . . . . . . . . . . . . 1 . Fabricator Hacks 11 | . . . . 2 . 3 . . . . . . . . . . . . . 3 . . . . . 3 . . . . . . Network Status 3 | . . . . . . 1 . . . . . . . . . . . . . 1 . . . . . 1 . . . . . . Load Schematic 4 | . . . . 1 . 1 . . . . . . . . . . . . . 1 . . . . . 1 . . . . . . Build 4 | . . . . 1 . 1 . . . . . . . . . . . . . 1 . . . . . 1 . . . . . . Repair Station Hacks 18 | . 2 . . 4 . 3 . . . 4 . . . . 1 . . . . 3 . . . . . . . . . 1 . . Scan Component 9 | . 1 . . 2 . 2 . . . 2 . . . . 1 . . . . 1 . . . . . . . . . . . . Repair 7 | . 1 . . 2 . 1 . . . 2 . . . . . . . . . 1 . . . . . . . . . . . . Refit 2 | . . . . . . . . . . . . . . . . . . . . 1 . . . . . . . . . 1 . . Recycling Unit Hacks 8 | . . . . 4 . 1 . . 1 . . . . . . . . . . 2 . . . . . . . . . . . . Process 1 | . . . . 1 . . . . . . . . . . . . . . . . . . . . . . . . . . . . Retrieve Matter 1 | . . . . 1 . . . . . . . . . . . . . . . . . . . . . . . . . . . . Retrieve Components 6 | . . . . 2 . 1 . . 1 . . . . . . . . . . 2 . . . . . . . . . . . . Scanalyzer 47 | . . . 6 6 . 2 . . . 2 . . . . 14 . . . . 10 . . . . 1 1 4 1 . . . . Insert Component 13 | . . . 1 2 . . . . . 1 . . . . 6 . . . . 2 . . . . . . 1 . . . . . Analyze 11 | . . . 1 3 . . . . . . . . . . 6 . . . . 1 . . . . . . . . . . . . Retrieve Study 23 | . . . 4 1 . 2 . . . 1 . . . . 2 . . . . 7 . . . . 1 1 3 1 . . . . Garrison Access Hacks 12 | . . . 1 3 . 1 . . . . . . . . 1 . . . . 2 . . . . 1 1 . 1 . 1 . . Seal Access 12 | . . . 1 3 . 1 . . . . . . . . 1 . . . . 2 . . . . 1 1 . 1 . 1 . . Unauthorized Hacks 19 | . 7 . 4 5 . 1 . . . 1 . . . . . . . . . 1 . . . . . . . . . . . . Terminals 15 | . 6 . 4 4 . 1 . . . . . . . . . . . . . . . . . . . . . . . . . . Botnet 14 | . 6 . 4 3 . 1 . . . . . . . . . . . . . . . . . . . . . . . . . . Operators 1 | . . . . 1 . . . . . . . . . . . . . . . . . . . . . . . . . . . . Fabricators . | . . . . . . . . . . . . . . . . . . . . . . . . . . . . . . . . . Repair Stations . | . . . . . . . . . . . . . . . . . . . . . . . . . . . . . . . . . Recycling Units 3 | . 1 . . 1 . . . . . . . . . . . . . . . 1 . . . . . . . . . . . . Recyclers 1 | . . . . . . . . . . . . . . . . . . . . 1 . . . . . . . . . . . . Tunnel 2 | . 1 . . 1 . . . . . . . . . . . . . . . . . . . . . . . . . . . . Scanalyzers . | . . . . . . . . . . . . . . . . . . . . . . . . . . . . . . . . . Garrison Access 1 | . . . . . . . . . . 1 . . . . . . . . . . . . . . . . . . . . . . Jam 1 | . . . . . . . . . . 1 . . . . . . . . . . . . . . . . . . . . . . Data Cores Recovered 7 | . 1 . . . . . . . . . . . . . . . . . . . . . . . 2 . . 1 1 . 2 . Used . | . . . . . . . . . . . . . . . . . . . . . . . . . . . . . . . . . Hacking Detections 78 | . 8 . 6 13 . 13 . . 2 5 3 . . . 3 . . . . 7 . . . . 2 5 1 4 1 5 . . Full Trace Events 12 | . 2 . 2 2 . 1 . . . 1 . . . . 1 . . . . 1 . . . . . 1 . . . 1 . . Feedback Events 2 | . . . 1 . . . . . . . . . . . 1 . . . . . . . . . . . . . . . . . Corruption 2 | . . . 1 . . . . . . . . . . . 1 . . . . . . . . . . . . . . . . . Feedback Blocked . | . . . . . . . . . . . . . . . . . . . . . . . . . . . . . . . . . Robot Schematics Acquired 31 | . . . . . . . . 4 . 3 . . . . . . . . . . . . . . 13 6 . 4 . 1 . . Robots Built . | . . . . . . . . . . . . . . . . . . . . . . . . . . . . . . . . . Authchips . | . . . . . . . . . . . . . . . . . . . . . . . . . . . . . . . . . Time 204 | . . . . . . . . . . . . . . . . . . . . . . . . . . 204 . . . . . . Total Robot Build Rating . | . . . . . . . . . . . . . . . . . . . . . . . . . . . . . . . . . Part Schematics Acquired 86 | . . . 1 3 . . . 15 . 12 . . . 13 3 . . . . 1 . . 4 . . 13 . 12 . 9 . . Parts Built 6 | . . . . 2 . 2 . . . . . . . . . . . . . 2 . . . . . . . . . . . . Authchips . | . . . . . . . . . . . . . . . . . . . . . . . . . . . . . . . . . Time 285 | . . . . 95 . 95 . . . . . . . . . . . . . 95 . . . . . . . . . . . . Total Part Build Rating 30 | . . . . 10 . 10 . . . . . . . . . . . . . 10 . . . . . . . . . . . . Part Studies Acquired 22 | . . . 3 1 . 2 . . . 1 . . . . 2 . . . . 7 . . . . 1 1 3 1 . . . . Parts Repaired 7 | . 1 . . 2 . 1 . . . 2 . . . . . . . . . 1 . . . . . . . . . . . . Time 270 | . 26 . . 64 . 44 . . . 82 . . . . . . . . . 54 . . . . . . . . . . . . Parts Recycled . | . . . . . . . . . . . . . . . . . . . . . . . . . . . . . . . . . Recycled Matter 408 | . . . . 408 . . . . . . . . . . . . . . . . . . . . . . . . . . . . Retrieved Matter 408 | . . . . 408 . . . . . . . . . . . . . . . . . . . . . . . . . . . . Retrieved Components 28 | . . . . 7 . 1 . . 10 . . . . . . . . . . 10 . . . . . . . . . . . . Parts Scanalyzed 7 | . . . 1 2 . . . . . . . . . . 3 . . . . 1 . . . . . . . . . . . . Part Schematics Acquired 7 | . . . 1 2 . . . . . . . . . . 3 . . . . 1 . . . . . . . . . . . . Parts Damaged 1 | . . . . . . . . . . . . . . . 1 . . . . . . . . . . . . . . . . . Bothacking | -11 -10 -10 -8 -7 -7 -7 -7 -7 -6 -6 -6 -6 -6 -6 -5 -5 -5 -5 -4 -4 -4 -4 -4 -3 -3 -3 -2 -2 -2 -1 -1 -1 ------------ Run | Yrd Mat Sub Mat Fac Was Fac Low Zio Pro Fac Ext Cet Arc Hub Fac Upp Upp War Pro Fac Upp Upp Zhi Pro Res Tes Res Qua Frg Acc Com Ac0 Used RIF Installer . | . . . . . . . . . . . . . . . . . . . . . . . . . . . . . . . . . Robots Hacked 6 | . 2 . . . . . . . . . . . . . . . . . . . . . . . . . . . . . 4 . Non-combat 2 | . 2 . . . . . . . . . . . . . . . . . . . . . . . . . . . . . . . Combat 4 | . . . . . . . . . . . . . . . . . . . . . . . . . . . . . . . 4 . Robot Hacks Applied 6 | . 2 . . . . . . . . . . . . . . . . . . . . . . . . . . . . . 4 . parse_system 4 | . . . . . . . . . . . . . . . . . . . . . . . . . . . . . . . 4 . no_distress 1 | . 1 . . . . . . . . . . . . . . . . . . . . . . . . . . . . . . . check_alert 1 | . 1 . . . . . . . . . . . . . . . . . . . . . . . . . . . . . . . Manual 1 | . . . . . . . . . . . . . . . . . . . . . . . . . . . . . . . 1 . Relay Couplers Released 9 | . . . . . . 4 . . . . . . . . . . . . . . . . . . . . . 2 3 . . . Machine Destruction 2 | . . . . . . . . . . . . . . . . . . . . . . . . . . . . 2 . . . . Programmers 7 | . . . . . . 4 . . . . . . . . . . . . . . . . . . . . . . 3 . . . Fabnet Peak Effective % . | . . . . . . . . . . . . . . . . . . . . . . . . . . . . . . . . . Robots Rewired 45 | . . . . . . . . . 11 . 21 . . . . . 4 5 . . 2 2 . . . . . . . . . . Allies Hacked 5 | . . . . . . . . . . . . . . . . . . 2 . . . . . . . . 1 . . . 2 . Hacks Repelled . | . . . . . . . . . . . . . . . . . . . . . . . . . . . . . . . . . Allies | -11 -10 -10 -8 -7 -7 -7 -7 -7 -6 -6 -6 -6 -6 -6 -5 -5 -5 -5 -4 -4 -4 -4 -4 -3 -3 -3 -2 -2 -2 -1 -1 -1 -------- Run | Yrd Mat Sub Mat Fac Was Fac Low Zio Pro Fac Ext Cet Arc Hub Fac Upp Upp War Pro Fac Upp Upp Zhi Pro Res Tes Res Qua Frg Acc Com Ac0 Total Allies 109 | . . . . . . . . 4 11 2 27 5 . . . . 4 5 . 2 2 2 . . 6 . 3 . . 4 32 . Largest Group 19 | . . . . . . . . 4 9 2 13 11 9 8 . . 4 9 . 2 2 2 . . 3 2 3 1 . 3 19 . Highest-Rated Group 2116 | . . . . . . . . 150 244 102 490 724 724 565 . . 120 393 . 162 97 95 . . 288 156 345 115 . 379 2116 . Highest-Rated Ally 192 | . . . . . . . . 40 41 51 159 159 159 96 . . 30 68 . 81 49 48 . . 96 81 115 115 . 135 192 . Zionite Dispatches 8 | . . . . . . . . . . 1 1 . . 1 . . . . . 1 . . . . 2 . 1 . . 1 . . Light 2 | . . . . . . . . . . . . . . . . . . . . . . . . . 1 . 1 . . . . . Recon 1 | . . . . . . . . . . . . . . 1 . . . . . . . . . . . . . . . . . . Hacker 3 | . . . . . . . . . . 1 . . . . . . . . . 1 . . . . 1 . . . . . . . Kinetic Resupply 1 | . . . . . . . . . . . . . . . . . . . . . . . . . . . . . . 1 . . Trap Resupply 1 | . . . . . . . . . . . 1 . . . . . . . . . . . . . . . . . . . . . Total Orders 8 | . . . . . . . . . . . 2 . . . 3 . . 2 . . . 1 . . . . . . . . . . STAY 3 | . . . . . . . . . . . 1 . . . . . . 1 . . . 1 . . . . . . . . . . FOLLOW 1 | . . . . . . . . . . . . . . . . . . 1 . . . . . . . . . . . . . . DROP 1 | . . . . . . . . . . . 1 . . . . . . . . . . . . . . . . . . . . . EXPLORE 2 | . . . . . . . . . . . . . . . 2 . . . . . . . . . . . . . . . . . RETURN 1 | . . . . . . . . . . . . . . . 1 . . . . . . . . . . . . . . . . . Ally Attacks 767 | . . . . . . . . . 109 3 220 37 21 139 . . . 27 . 17 2 2 . . 18 11 13 13 . 20 115 . Total Damage 24385 | . . . . . . . . . 2032 236 4100 1061 518 5456 . . . 838 . 433 131 26 . . 638 136 681 528 . 556 7015 . Kills 116 | . . . . . . . . . 12 2 35 5 1 33 . . . 3 . 3 . . . . 5 2 1 . . 3 11 . Allies Corrupted 9 | . . . . . . . . . . . 1 . . 1 . . . . . . . 1 . . . . 1 . . . 5 . Allies Melted 2 | . . . . . . . . . 1 . . . . . . . . 1 . . . . . . . . . . . . . . Intel | -11 -10 -10 -8 -7 -7 -7 -7 -7 -6 -6 -6 -6 -6 -6 -5 -5 -5 -5 -4 -4 -4 -4 -4 -3 -3 -3 -2 -2 -2 -1 -1 -1 ------- Run | Yrd Mat Sub Mat Fac Was Fac Low Zio Pro Fac Ext Cet Arc Hub Fac Upp Upp War Pro Fac Upp Upp Zhi Pro Res Tes Res Qua Frg Acc Com Ac0 Active Infowar (turns) 29909 | . 782 120 728 1635 97 934 745 1497 926 1541 1072 5 . 314 1116 766 831 1356 545 1922 577 1138 128 875 819 1424 804 872 2573 557 2280 930 Optics 14863 | . . . . . . . . . . . . . . . . . . . . 1886 577 1138 128 875 819 1424 804 872 2573 557 2280 930 Sensors 22781 | . 191 120 330 1392 97 934 745 1497 926 1541 1072 5 . 314 1116 766 831 1356 545 1627 564 1130 128 378 260 1340 760 815 1506 390 73 32 Terrain 7043 | . . . . . . . . . . . . . . . . . . 594 . 1102 577 820 125 795 639 1260 801 328 . 2 . . Structural 591 | . 591 . . . . . . . . . . . . . . . . . . . . . . . . . . . . . . . Seismic 641 | . . . 398 243 . . . . . . . . . . . . . . . . . . . . . . . . . . . . Decoding 299 | . . . . . . . . . . . . . . . . . . . . . . . . 178 121 . . . . . . . Cloaking 179 | . . . . . . . . . . . . . . . . . . . . . . . . 143 . . . . . . 36 . Jamming 1 | . . . . . . . . . . . . . . . 1 . . . . . . . . . . . . . . . . . ECM 3 | . . . . . . . . . . . . . . . . . . . . . . . . . . . . 3 . . . . Robot Analysis Total 4 | . . . . . . . . . . . . . . . . . . . . . . . 4 . . . . . . . . . Derelict Logs Recovered 11 | . . . . . . . 1 2 . . . . . . . 2 2 . 2 . . 2 . . . . . . . . . . Drone Launches 4 | . . . . . . . . . . . . . . . 4 . . . . . . . . . . . . . . . . . Drone Recoveries 4 | . . . . . . . . . . . . . . . 4 . . . . . . . . . . . . . . . . . Decoded 0b10 Intel 6 | . . . . . . . . . . . . . . . . . . . . . . . . . 6 . . . . . . . Items 6 | . . . . . . . . . . . . . . . . . . . . . . . . . 6 . . . . . . . Zionite Intel Received 47 | . . . . . . . . . . 4 3 . . 5 3 . . . . 3 . . . . 6 6 1 8 1 5 2 . Main Access 1 | . . . . . . . . . . . . . . . 1 . . . . . . . . . . . . . . . . . Branch Access 2 | . . . . . . . . . . 1 . . . . . . . . . 1 . . . . . . . . . . . . Emergency Access 5 | . . . . . . . . . . . 1 . . 1 1 . . . . 1 . . . . . . . 1 . . . . Guard Positions 3 | . . . . . . . . . . . . . . . . . . . . . . . . . 1 . . 1 1 . . . Component Stockpiles 5 | . . . . . . . . . . . 1 . . . 1 . . . . . . . . . . . 1 1 . 1 . . Prototype Stockpiles 2 | . . . . . . . . . . . . . . . . . . . . . . . . . . . . 1 . 1 . . Component Schematics 2 | . . . . . . . . . . 1 . . . 1 . . . . . . . . . . . . . . . . . . Prototype Schematics 3 | . . . . . . . . . . . . . . . . . . . . . . . . . . 1 . 1 . 1 . . Unaware Schematics 7 | . . . . . . . . . . 1 . . . . . . . . . . . . . . 3 1 . 1 . 1 . . Unaware Analyses 6 | . . . . . . . . . . . 1 . . 1 . . . . . . . . . . . 1 . 1 . 1 1 . Trap Installations 2 | . . . . . . . . . . . . . . . . . . . . . . . . . 1 1 . . . . . . Active Terminals 3 | . . . . . . . . . . . . . . 1 . . . . . . . . . . . 1 . . . . 1 . Active Garrisons 3 | . . . . . . . . . . 1 . . . . . . . . . . . . . . . 1 . 1 . . . . Depthwide Sectors/0 2 | . . . . . . . . . . . . . . . . . . . . 1 . . . . 1 . . . . . . . Depthwide Sectors/-1 1 | . . . . . . . . . . . . . . 1 . . . . . . . . . . . . . . . . . . Exploration | -11 -10 -10 -8 -7 -7 -7 -7 -7 -6 -6 -6 -6 -6 -6 -5 -5 -5 -5 -4 -4 -4 -4 -4 -3 -3 -3 -2 -2 -2 -1 -1 -1 ------------- Run | Yrd Mat Sub Mat Fac Was Fac Low Zio Pro Fac Ext Cet Arc Hub Fac Upp Upp War Pro Fac Upp Upp Zhi Pro Res Tes Res Qua Frg Acc Com Ac0 Turns Passed 35830 | 66 1473 404 971 1635 97 2581 745 1507 1011 1560 2369 473 107 526 1559 773 831 1385 856 1924 577 1138 128 875 819 1424 804 872 2573 557 2280 930 Spaces Moved 30418 | 40 726 220 703 1265 89 1712 594 1332 649 859 1318 216 63 300 1067 970 1109 1314 782 1938 866 1463 172 1090 1070 1390 1072 941 2240 775 1915 158 Core 8 | 5 . . . . . . . . . . . . . . . . . . . . . . . . . . . . 1 . 2 . Treads 1596 | 35 726 9 . . . . . . . . . . . . . . . . . . . . . . . . . . . . 668 158 Legs 461 | . . . . . . . . . . . . . . . . . . . . . . . . . . . . . 461 . . . Wheels 10050 | . . 211 703 1265 89 1712 594 1332 649 859 1318 216 63 300 572 . . . . 167 . . . . . . . . . . . . Hover 18303 | . . . . . . . . . . . . . . . 495 970 1109 1314 782 1771 866 1463 172 1090 1070 1390 1072 941 1778 775 1245 . Flight . | . . . . . . . . . . . . . . . . . . . . . . . . . . . . . . . . . Fastest Speed 38 | 50 160 80 76 80 105 98 105 105 105 98 113 115 115 105 68 68 68 68 64 38 50 50 52 52 46 46 46 46 38 40 40 166 Average Speed 79 | 146 160 108 94 103 105 108 105 105 107 114 114 116 125 123 97 68 68 68 88 56 50 51 52 60 46 49 50 46 58 40 84 166 Slowest Speed 1550 | 160 160 160 130 115 105 150 105 113 120 125 120 128 128 195 265 68 68 71 290 245 50 112 58 106 106 113 112 105 1550 108 250 166 Overloaded Moves . | . . . . . . . . . . . . . . . . . . . . . . . . . . . . . . . . . Propulsion Burnouts . | . . . . . . . . . . . . . . . . . . . . . . . . . . . . . . . . . Robots Hopped . | . . . . . . . . . . . . . . . . . . . . . . . . . . . . . . . . . Potential Cave-ins 3 | . . . . . . . . . . . . . . . . . . . . . . . . . . . . 3 . . . . Cave-ins Triggered . | . . . . . . . . . . . . . . . . . . . . . . . . . . . . . . . . . Teleports 10 | . . . . . . . . . . . . . . . . . . . . . . . . . . 1 . 1 5 . 1 2 Exploration Rate (%) 58 | 4 97 15 49 39 69 47 68 90 60 27 95 78 74 40 27 88 93 92 65 40 82 95 61 88 30 95 21 83 37 25 59 6 Regions Visited 32 Branch Regions 21 Pre-discovered Areas 23 | . 1 . . 1 . . 1 . . . . . . 5 . 1 1 . 1 4 . 1 3 . 4 . . . . . . . Known Exits Taken 25 | . . . . . . 1 1 1 1 1 1 1 1 1 1 1 1 1 1 1 1 1 1 1 1 1 1 1 1 1 . . Unknown Exits Taken 5 | 1 1 1 1 . . . . . . . . . . . . . . . . . . . . . . . . . . . 1 . Scrap Searched 30 | . . 3 . . . . 3 4 2 . . . . . . 3 2 . 4 . 3 2 . 4 . . . . . . . . Spaces Dug 217 | . 1 5 . 1 . 3 2 . . 20 . . . 5 41 8 4 . . 25 1 1 . 1 3 23 6 28 15 4 2 18 Terrain Destroyed 1905 | . 21 29 . 10 . 57 49 . 32 50 . 7 3 14 196 64 5 12 218 97 125 264 . 240 7 49 27 32 65 20 22 190 Melee 76 | . 1 . . . . 3 2 . . 20 . . . 5 14 . . . . 24 1 1 . 1 . . . . . 4 . . Projectile 485 | . . 6 . 10 . 2 . . . . . 7 3 7 45 8 5 8 3 10 . . . 1 4 31 10 32 65 16 22 190 AOE 1342 | . 20 23 . . . 52 47 . 32 30 . . . . 137 56 . 4 215 63 124 263 . 238 3 18 17 . . . . . Terrain Rammed . | . . . . . . . . . . . . . . . . . . . . . . . . . . . . . . . . . Walls Destroyed . | . . . . . . . . . . . . . . . . . . . . . . . . . . . . . . . . . Machines Disabled . | . . . . . . . . . . . . . . . . . . . . . . . . . . . . . . . . . Actions | -11 -10 -10 -8 -7 -7 -7 -7 -7 -6 -6 -6 -6 -6 -6 -5 -5 -5 -5 -4 -4 -4 -4 -4 -3 -3 -3 -2 -2 -2 -1 -1 -1 --------- Run | Yrd Mat Sub Mat Fac Was Fac Low Zio Pro Fac Ext Cet Arc Hub Fac Upp Upp War Pro Fac Upp Upp Zhi Pro Res Tes Res Qua Frg Acc Com Ac0 Total 39615 | 45 893 311 923 1519 92 2148 700 1436 902 1303 2093 403 83 392 1393 1061 1179 1786 905 2602 976 1775 203 1267 1339 2017 1302 1285 3265 970 2398 649 Wait 4926 | . 50 23 93 154 . 157 84 82 117 282 253 134 13 19 88 37 57 395 66 410 65 213 8 126 99 348 141 180 586 111 196 339 Move 30386 | 39 725 219 702 1265 88 1711 593 1331 648 858 1317 215 62 299 1066 969 1108 1313 781 1937 865 1462 171 1089 1069 1389 1071 940 2239 774 1914 157 Hop . | . . . . . . . . . . . . . . . . . . . . . . . . . . . . . . . . . Pick Up 329 | . 10 2 17 14 2 29 2 1 . 13 18 8 . 5 14 8 1 2 8 16 2 5 2 2 13 21 8 18 45 5 33 5 Fast Attach 421 | 6 7 4 20 17 1 31 3 6 4 14 2 2 . 7 25 4 . 11 . 41 3 2 8 12 34 38 17 15 52 9 19 7 Attach 188 | . 1 7 2 3 1 20 1 . . 10 9 1 . 6 19 3 . . 11 17 . 6 . 4 2 7 2 4 29 2 16 5 Detach 66 | . 1 3 1 . . 6 . 1 . 1 . . . . 7 . . . 2 13 . 3 1 3 4 1 . 2 12 1 2 2 Swap 348 | . 8 6 2 6 . 13 4 6 13 10 21 8 2 8 18 9 1 8 3 20 12 8 . 2 12 30 8 10 42 1 36 21 Drop 541 | . 5 1 27 22 . 26 4 8 5 20 24 9 . 4 30 11 . 14 2 30 7 5 9 9 43 55 24 29 59 7 44 8 Fire 1352 | . 58 46 59 38 . 110 6 . 14 3 10 18 6 26 88 20 6 13 31 41 18 48 . 15 50 105 30 87 146 54 101 105 Melee 380 | . 28 . . . . 37 3 1 20 80 34 . . 15 30 . . . 1 64 2 6 4 5 . . . . 13 5 32 . Ram . | . . . . . . . . . . . . . . . . . . . . . . . . . . . . . . . . . Kick . | . . . . . . . . . . . . . . . . . . . . . . . . . . . . . . . . . Crush . | . . . . . . . . . . . . . . . . . . . . . . . . . . . . . . . . . Escape Stasis 131 | . . . . . . 8 . . . 8 16 . . . 8 . . . . 13 . . . . 13 23 . . 42 . . . Rewire 517 | . . . . . . . . . 81 . 379 . . . . . 6 30 . . 2 12 . . . . 1 . . 1 5 . Trap 11 | . . . . . . . . . . 4 2 . . . . . . . . . . 5 . . . . . . . . . . Miscellaneous 19 | . . . . . . . . . . . 8 8 . 3 . . . . . . . . . . . . . . . . . . Route ------- -11/Scrapyard -10/Materials (discovered 6 exits: [*Mat x3] / [*Min x2] / [*Sub]) -10/Subcaves -8/Materials -7/Factory (discovered 7 exits: Fac x4 / Sto / *Low x2) -7/Waste -7/Factory (discovered 4 exits: *Fac x2 / *Sto / *Low) -7/Lower Caves -7/Zion (discovered 2 exits: Dee / *Pro) -6/Proximity Caves -6/Factory (discovered 5 exits: Fac / *Low x2 / *Ext x2) -6/Extension (discovered 2 exits: *Fac / *Cet) -6/Cetus (discovered 2 exits: *Fac / *Arc) -6/Archives (discovered 2 exits: *Hub x2) -6/Hub_04(d) -5/Factory (discovered 5 exits: *Fac x4 / *Upp) -5/Upper Caves -5/Upper Caves (discovered 2 exits: *Fac / *War) -5/Warlord -4/Proximity Caves -4/Factory (discovered 4 exits: *Res x2 / *Upp x2) -4/Upper Caves -4/Upper Caves (discovered 2 exits: *Res / *Zhi) -4/Zhirov -3/Proximity Caves -3/Research (discovered 2 exits: *Res / *Tes) -3/Testing -2/Research -2/Quarantine (discovered 3 exits: *Acc / *Sec / *Frg) -2/Protoforge -1/Access (discovered 2 exits: Sur / *Com) -1/Command (discovered 3 exits: *Sur x2 / [*Ac0]) -1/Access_0 To Epsilon Eridani History --------- Turn | Location | Event 34 | -11/Scrapyard | Discovered new exit (range 14) 67 | -11/Scrapyard | Entered Materials 304 | -10/Materials | Build established: Mutant 346 | -10/Materials | Repaired Lgt. Treads 354 | -10/Materials | Discovered new exit (range 6) 724 | -10/Materials | Discovered new exit (range 8) 730 | -10/Materials | Discovered new exit (range 12) 814 | -10/Materials | Discovered new exit (range 10) 852 | -10/Materials | Discovered new exit (range 18) 1131 | -10/Materials | Discovered new exit (range 11) 1540 | -10/Materials | Entered Subcaves 1604 | -10/Subcaves | Core integrity fell below 50% 1652 | -10/Subcaves | A swath of the cavern ceiling suddenly collapsed 1652 | -10/Subcaves | Lost 7 parts (1p4n2w) 1674 | -10/Subcaves | Core integrity fell below 20% 1906 | -10/Subcaves | Discovered new exit (range 12) 1944 | -10/Subcaves | Entered Materials 1944 | -8/Materials | Evolved 4 slots: Propulsion x1, Utility x2, Weapon x1 2248 | -8/Materials | Build established: Tank 2763 | -8/Materials | Discovered new exit (range 16) 2915 | -8/Materials | Entered Factory 2915 | -7/Factory | Evolved 2 slots: Propulsion x1, Utility x1 2926 | -7/Factory | Build established: Scavenger-Mutant 3003 | -7/Factory | Identified exit to Factory 3115 | -7/Factory | Repaired Hrd. Light Armor Plating 3205 | -7/Factory | Discovered new exit (range 6) 3210 | -7/Factory | Identified exit to Lower Caves 3454 | -7/Factory | Build established: Skirmisher 4065 | -7/Factory | Repaired Hrd. Light Armor Plating? 4484 | -7/Factory | Identified exit to Storage 4536 | -7/Factory | Fabricated Imp. Actuator Array? 4550 | -7/Factory | Sucked down chute 4550 | -7/Factory | Entered Waste 4558 | -7/Waste | Spotted C-40 Crusher 4565 | -7/Waste | EMP discharged 4565 | -7/Waste | System corruption reached 10% 4569 | -7/Waste | Spotted C-40 Crusher 4585 | -7/Waste | Spotted C-40 Crusher 4590 | -7/Waste | Spotted C-40 Crusher 4593 | -7/Waste | Crushed by Compactor (0 parts destroyed, 1 dropped) 4598 | -7/Waste | Spotted C-40 Crusher 4600 | -7/Waste | Crushed by Compactor (1 part destroyed) 4600 | -7/Waste | Spotted C-40 Crusher 4629 | -7/Waste | Discovered new exit (range 11) 4646 | -7/Waste | Identified exit to Factory 4647 | -7/Waste | Entered Factory 4708 | -7/Factory | Repaired Arm. Huge Wheel+ 5522 | -7/Factory | Fabricated Imp. Actuator Array? 5828 | -7/Factory | Discovered exit to Factory (range 12) 5888 | -7/Factory | Core integrity fell below 50% 6060 | -7/Factory | Build established: Tank 6184 | -7/Factory | Found Unknown Protection 6184 | -7/Factory | Identified Powered Armor 6222 | -7/Factory | Found Prototype Launcher 6222 | -7/Factory | Identified Rocket Array 6275 | -7/Factory | Discovered exit to Factory (range 15) 6502 | -7/Factory | Found Prototype Launcher 6502 | -7/Factory | Identified Mni. Smartbomb Launcher 6510 | -7/Factory | Found Mni. Smartbomb Launcher 6545 | -7/Factory | Build established: Scientist-Mutant 6647 | -7/Factory | First assault squad dispatched 6770 | -7/Factory | Lost 6 parts (2n2u2w) 6824 | -7/Factory | Discovered exit to Storage (range 14) 7057 | -7/Factory | Discovered exit to Lower Caves (range 6) 7228 | -7/Factory | Entered Lower Caves 7276 | -7/Lower Caves | Attracted the attention of an 0b10 checkpoint 7433 | -7/Lower Caves | Build established: Scavenger-Gladiator 7555 | -7/Lower Caves | Found DCF Scrap (16 items) 7633 | -7/Lower Caves | Entered a destroyed Warlord outpost 7711 | -7/Lower Caves | Learned location of Zion (-7) 7865 | -7/Lower Caves | Build established: Gladiator 7969 | -7/Lower Caves | A Derelict revealed a hidden shortcut to a safe place 7972 | -7/Lower Caves | Identified exit to Zion 7973 | -7/Lower Caves | Entered Zion 8031 | -7/Zion | System corruption cleaned by Quarantine Array 8056 | -7/Zion | Found Prototype Device 8104 | -7/Zion | Discovered new exit (range 12) 8256 | -7/Zion | Learned Factory interactive machine intel 8340 | -7/Zion | Found Prototype Device 8340 | -7/Zion | Identified Mobile Refinery Mk. CCLXVII 8413 | -7/Zion | Identified exit to Deep Caves 8451 | -7/Zion | Visited the Megawrench Repair Shop 8451 | -7/Zion | Megawrench repaired 9 parts 8924 | -7/Zion | Learned location of 1 exit from Factory 9089 | -7/Zion | Met Imprinter 9116 | -7/Zion | Imprinted 9118 | -7/Zion | Declared Zion's savior 9477 | -7/Zion | Identified exit to Proximity Caves 9480 | -7/Zion | Entered Proximity Caves 9480 | -6/Proximity Caves | Accompanied by 4 allies 9949 | -6/Proximity Caves | Snuck into a huge 0b10 base via the rear entrance 10111 | -6/Proximity Caves | Lost 4 allies 10141 | -6/Proximity Caves | Discovered exit to Factory (range 8) 10205 | -6/Proximity Caves | Lost 4 allies 10399 | -6/Proximity Caves | Spotted B-75 Beast 10472 | -6/Proximity Caves | Lost 7 allies 10491 | -6/Proximity Caves | Entered Factory 10491 | -6/Factory | Evolved 2 slots: Utility x2 10492 | -6/Factory | Identified exit to Factory 10493 | -6/Factory | Loaded intel: 55 interactive machine locations 10659 | -6/Factory | Found Prototype Processor 10659 | -6/Factory | Identified Exp. Targeting Computer 10695 | -6/Factory | Retrieved Zion intel report: Active Garrisons 10743 | -6/Factory | Discovered new exit (range 6) 10755 | -6/Factory | Identified exit to Extension 10997 | -6/Factory | Repaired Arm. Huge Wheel+ 11084 | -6/Factory | Retrieved Zion intel report: Component Schematics 11098 | -6/Factory | Retrieved Zion intel report: Unaware Schematics 11123 | -6/Factory | Build established: Scavenger-Gladiator 11183 | -6/Factory | Repaired Imp. Light Armor Plating 11309 | -6/Factory | Retrieved Zion intel report: Branch Access 11309 | -6/Factory | Identified exit to Lower Caves 11310 | -6/Factory | Zion Hacker squad teleported in 11661 | -6/Factory | Build established: Derelict-Gladiator 11812 | -6/Factory | Terminal network hard line cut 11959 | -6/Factory | Cargo convoy interrupted 12051 | -6/Factory | Entered Extension 12168 | -6/Extension | Retrieved Zion intel report: Unaware Analyses 12287 | -6/Extension | Rescued a captive Derelict 12391 | -6/Extension | Retrieved Zion intel report: Emergency Access 12392 | -6/Extension | Zion Trap Resupply teleported in 12640 | -6/Extension | Build established: Commander-Gladiator 12737 | -6/Extension | Spotted B-75 Beast 12747 | -6/Extension | Allies destroyed B-75 Beast 12758 | -6/Extension | Spotted B-75 Beast 13061 | -6/Extension | Retrieved Zion intel report: Component Stockpiles 13066 | -6/Extension | Lost 5 allies 13112 | -6/Extension | Identified Bomb Factory No. 2 13208 | -6/Extension | Rescued a captive Derelict 13287 | -6/Extension | Rescued a captive Derelict 13287 | -6/Extension | Rescued a captive Derelict 13417 | -6/Extension | Terminal network hard line cut 13621 | -6/Extension | Discovered exit to Factory (range 10) 13622 | -6/Extension | Discovered new exit (range 6) 14213 | -6/Extension | Rescued A7 14412 | -6/Extension | Identified exit to Cetus 14420 | -6/Extension | Entered Cetus 14420 | -6/Cetus | Accompanied by 11 allies (A7) 14425 | -6/Cetus | Acquired a Cetus Manufacturing Module code from A7 14438 | -6/Cetus | Spotted Cetus Guard 14439 | -6/Cetus | Spotted Cetus Guard 14443 | -6/Cetus | Spotted Cetus Guard 14448 | -6/Cetus | Destroyed Cetus Guard 14453 | -6/Cetus | Allies destroyed Cetus Guard 14453 | -6/Cetus | Spotted Cetus Guard 14459 | -6/Cetus | Allies destroyed Cetus Guard 14462 | -6/Cetus | Destroyed Cetus Guard 14488 | -6/Cetus | Lost 7 allies 14539 | -6/Cetus | Started Cetus Manufacturing Module 14564 | -6/Cetus | Manufactured an Enhanced Grunt 14574 | -6/Cetus | Escorted A7 to Cetus Mainframe 14589 | -6/Cetus | Manufactured an Enhanced Grunt 14614 | -6/Cetus | Manufactured an Enhanced Grunt 14639 | -6/Cetus | Manufactured an Enhanced Grunt 14664 | -6/Cetus | Manufactured an Enhanced Grunt 14692 | -6/Cetus | Discovered new exit (range 15) 14762 | -6/Cetus | Spotted Cetus Guard 14762 | -6/Cetus | Spotted Cetus Guard 14765 | -6/Cetus | Spotted Cetus Guard 14770 | -6/Cetus | Destroyed Cetus Guard 14773 | -6/Cetus | Allies destroyed Cetus Guard 14778 | -6/Cetus | Destroyed Cetus Guard 14785 | -6/Cetus | Discovered exit to Factory (range 15) 14791 | -6/Cetus | Scared off Revision 17 14868 | -6/Cetus | Identified exit to Archives 14893 | -6/Cetus | Entered Archives 14893 | -6/Archives | Accompanied by 9 allies (A7) 14898 | -6/Archives | Received a hacking code to weaken MAIN.C 14946 | -6/Archives | Unable to access archive contents 14951 | -6/Archives | Discovered new exit (range 14) 14963 | -6/Archives | Discovered new exit (range 16) 14983 | -6/Archives | Identified exit to Hub_04(d) 15000 | -6/Archives | Entered Hub_04(d) 15000 | -6/Hub_04(d) | Accompanied by 8 allies 15014 | -6/Hub_04(d) | Spotted B-75 Beast 15040 | -6/Hub_04(d) | Allies destroyed B-75 Beast 15071 | -6/Hub_04(d) | Retrieved Zion intel report: Active Terminals 15135 | -6/Hub_04(d) | Retrieved Zion intel report: Component Schematics 15172 | -6/Hub_04(d) | Retrieved Zion intel report: Depthwide Sectors/-5 15175 | -6/Hub_04(d) | Garrison activated, responded to threat 15296 | -6/Hub_04(d) | Retrieved Zion intel report: Unaware Analyses 15329 | -6/Hub_04(d) | Discovered exit to Factory (range 16) 15350 | -6/Hub_04(d) | First assault squad dispatched 15370 | -6/Hub_04(d) | Network Hub disabled 15399 | -6/Hub_04(d) | Spotted Lightning 15407 | -6/Hub_04(d) | Retrieved Zion intel report: Emergency Access 15408 | -6/Hub_04(d) | Zion Recon squad teleported in 15410 | -6/Hub_04(d) | Spotted Lightning 15412 | -6/Hub_04(d) | Spotted Lightning 15420 | -6/Hub_04(d) | Destroyed Lightning 15424 | -6/Hub_04(d) | Destroyed Lightning 15451 | -6/Hub_04(d) | Lost 4 allies 15454 | -6/Hub_04(d) | Lost 3 parts (2n1u) 15490 | -6/Hub_04(d) | Found Prototype Energy Cannon 15493 | -6/Hub_04(d) | Found Prototype Device 15495 | -6/Hub_04(d) | Core integrity fell below 50% 15504 | -6/Hub_04(d) | Spotted Lightning 15506 | -6/Hub_04(d) | System corruption reached 10% 15506 | -6/Hub_04(d) | Spotted Lightning 15507 | -6/Hub_04(d) | Spotted Lightning 15526 | -6/Hub_04(d) | Entered Factory 15526 | -5/Factory | Evolved 2 slots: Power x1, Propulsion x1 15550 | -5/Factory | Lost 5 parts (1n4u) 15848 | -5/Factory | Retrieved Zion intel report: Component Stockpiles 15979 | -5/Factory | Lost 3 parts (2n1w) 16032 | -5/Factory | Destroyed 9 combat bots 16033 | -5/Factory | Lost 3 parts (1p2u) 16044 | -5/Factory | Build established: Scavenger-Mutant 16126 | -5/Factory | First assault squad dispatched 16198 | -5/Factory | Retrieved Zion intel report: Main Access 16198 | -5/Factory | Identified exit to Factory 16243 | -5/Factory | Retrieved Zion intel report: Emergency Access 16363 | -5/Factory | Identified EMDS 16363 | -5/Factory | Identified Exp. EM Shield 16363 | -5/Factory | Central database locked down 16537 | -5/Factory | Lost 4 parts (3n1u) 16539 | -5/Factory | Destroyed 10 combat bots 16605 | -5/Factory | Lost 3 parts (1p2n) 16796 | -5/Factory | Discovered new exit (range 15) 16805 | -5/Factory | Identified exit to Upper Caves 17085 | -5/Factory | Entered Upper Caves 17101 | -5/Upper Caves | Encountered a Warlord checkpoint 17102 | -5/Upper Caves | Found DCF Scrap (13 items) 17160 | -5/Upper Caves | Identified exit to Upper Caves 17581 | -5/Upper Caves | Build established: Derelict-Skirmisher 17586 | -5/Upper Caves | Learned location of Armory (-3) 17858 | -5/Upper Caves | Entered another Upper Caves area 17949 | -5/Upper Caves | Discovered exit to Factory (range 5) 18131 | -5/Upper Caves | Learned Factory stockpile data 18228 | -5/Upper Caves | Encountered a Warlord checkpoint 18428 | -5/Upper Caves | Build established: Hacker-Skirmisher 18510 | -5/Upper Caves | Attacked by a delusional Derelict stockpiling Unaware 18651 | -5/Upper Caves | Discovered new exit (range 13) 18659 | -5/Upper Caves | Identified exit to Warlord 18689 | -5/Upper Caves | Entered Warlord 18689 | -5/Warlord | Accompanied by 4 allies 18715 | -5/Warlord | System corruption cleaned by Quarantine Array 19059 | -5/Warlord | Rebuked by Warlord 19062 | -5/Warlord | Warlord's base attacked by MAIN.C 19126 | -5/Warlord | Found Prototype Energy Gun 19126 | -5/Warlord | Identified Vortex Shotgun 19128 | -5/Warlord | Found Vortex Shotgun 19266 | -5/Warlord | Build established: Commander-Scout 19274 | -5/Warlord | Found Prototype Ballistic Cannon 19274 | -5/Warlord | Identified Hvy. Autocannon 19300 | -5/Warlord | Lost 7 allies 19412 | -5/Warlord | Warlord forces counterattacked 19419 | -5/Warlord | Lost 6 allies 19483 | -5/Warlord | Opened side exit 19543 | -5/Warlord | Spotted Executioner 19555 | -5/Warlord | Destroyed Executioner 19562 | -5/Warlord | Spotted Striker 19562 | -5/Warlord | Spotted Striker 19668 | -5/Warlord | Lost 22 allies 19737 | -5/Warlord | Warlord base infiltrated, sounded retreat 19746 | -5/Warlord | Lost 4 allies 19764 | -5/Warlord | Spotted Striker 19787 | -5/Warlord | Spotted Striker 19858 | -5/Warlord | Build established: Hacker-Skirmisher 19875 | -5/Warlord | Spotted Executioner 19904 | -5/Warlord | Spotted Executioner 19918 | -5/Warlord | Lost 4 allies 19964 | -5/Warlord | Spotted Striker 19999 | -5/Warlord | Lost 3 allies 20033 | -5/Warlord | Spotted Striker 20057 | -5/Warlord | Spotted Executioner 20062 | -5/Warlord | Spotted Striker 20065 | -5/Warlord | Core integrity fell below 50% 20067 | -5/Warlord | Discovered new exit (range 12) 20073 | -5/Warlord | Identified exit to Proximity Caves 20074 | -5/Warlord | Entered Proximity Caves 20104 | -4/Proximity Caves | Lost 7 parts (4u3w) 20265 | -4/Proximity Caves | Discovered exit to Factory (range 10) 20289 | -4/Proximity Caves | Learned Research stockpile data 20352 | -4/Proximity Caves | Attracted the attention of an 0b10 checkpoint 20367 | -4/Proximity Caves | Build established: Scavenger-Skirmisher 20447 | -4/Proximity Caves | Acquired the password to a Derelict Tinkerer's latest research 20459 | -4/Proximity Caves | Found Prototype Special Weapon 20559 | -4/Proximity Caves | Caught by Unaware searching for contraband prototypes 20678 | -4/Proximity Caves | Caught by Unaware searching for contraband prototypes 20713 | -4/Proximity Caves | Lost 5 parts (3n2u) 20930 | -4/Proximity Caves | Entered Factory 20930 | -4/Factory | Evolved 2 slots: Utility x2 20954 | -4/Factory | Build established: Mutant 21002 | -4/Factory | Retrieved Zion intel report: Branch Access 21002 | -4/Factory | Identified exit to Upper Caves 21011 | -4/Factory | Spotted B-86 Titan 21078 | -4/Factory | Repaired Centrium Medium Armor Plating? 21238 | -4/Factory | Lost 4 parts (1p2u1w) 21306 | -4/Factory | Zion Hacker squad teleported in 21342 | -4/Factory | Lost 3 parts (1p1n1w) 21400 | -4/Factory | Retrieved Zion intel report: Depthwide Sectors/-4 21451 | -4/Factory | Fabricated Imp. Particle Charger (x2) 21635 | -4/Factory | Identified Molecular Deconstructor 21692 | -4/Factory | Retrieved Zion intel report: Emergency Access 21775 | -4/Factory | Build established: Scavenger-Scout 22078 | -4/Factory | Discovered new exit (range 5) 22081 | -4/Factory | Identified exit to Research 22308 | -4/Factory | Lost 8 parts (2p3n2u1w) 22458 | -4/Factory | Terminal network hard line cut 22551 | -4/Factory | Found Prototype Processor 22551 | -4/Factory | Identified Exp. Signal Interpreter 22618 | -4/Factory | Discovered exit to Research (range 6) 22854 | -4/Factory | Entered Upper Caves 23057 | -4/Upper Caves | Attracted the attention of an 0b10 outpost 23141 | -4/Upper Caves | Destroyed 7 combat bots 23143 | -4/Upper Caves | Build established: Scientist-Scout 23338 | -4/Upper Caves | Discovered new exit (range 5) 23340 | -4/Upper Caves | Identified exit to Upper Caves 23431 | -4/Upper Caves | Entered another Upper Caves area 23431 | -4/Upper Caves | Accompanied by 1 ally 23735 | -4/Upper Caves | Discovered exit to Research (range 5) 23813 | -4/Upper Caves | Attracted the attention of an 0b10 outpost 24123 | -4/Upper Caves | Spotted B-86 Titan 24183 | -4/Upper Caves | Build established: Hacker-Scout 24328 | -4/Upper Caves | Learned location of Testing (-3) 24434 | -4/Upper Caves | Discovered new exit (range 5) 24436 | -4/Upper Caves | Identified exit to Zhirov 24569 | -4/Upper Caves | Entered Zhirov 24571 | -4/Zhirov | Discovered new exit (range 3) 24588 | -4/Zhirov | Met Zhirov 24599 | -4/Zhirov | Learned location of Command (-1) 24602 | -4/Zhirov | Zhirov requested help retrieving the SGEMP Prototype 24611 | -4/Zhirov | Found Alien Artifact 24611 | -4/Zhirov | Identified Integrated Dissipator 24611 | -4/Zhirov | Installed Integrated Dissipator, increased core heat dissipation (+20) 24620 | -4/Zhirov | Found Alien Artifact 24697 | -4/Zhirov | Identified exit to Proximity Caves 24697 | -4/Zhirov | Entered Proximity Caves 25131 | -3/Proximity Caves | Attracted the attention of an 0b10 base 25373 | -3/Proximity Caves | Build established: Hacker-Mutant 25499 | -3/Proximity Caves | Discovered exit to Research (range 22) 25572 | -3/Proximity Caves | Entered Research 25572 | -3/Research | Evolved 2 slots: Propulsion x1, Utility x1 25610 | -3/Research | Retrieved Zion intel report: Trap Installations 25631 | -3/Research | Zion Light squad teleported in 25714 | -3/Research | Spotted B-86 Titan 25726 | -3/Research | Destroyed B-86 Titan 25760 | -3/Research | Lost 3 allies 25789 | -3/Research | Retrieved Zion intel report: Guard Positions 25907 | -3/Research | Retrieved Zion intel report: Unaware Schematics 25909 | -3/Research | Found Unknown Protection 25909 | -3/Research | Identified Adv. Powered Armor 25943 | -3/Research | Retrieved Zion intel report: Depthwide Sectors/-3 26069 | -3/Research | Found Prototype Launcher 26069 | -3/Research | Identified Hellfire Missile Launcher 26095 | -3/Research | Discovered new exit (range 23) 26140 | -3/Research | Identified exit to Research 26215 | -3/Research | Retrieved Zion intel report: Unaware Schematics 26282 | -3/Research | Discovered new exit (range 22) 26304 | -3/Research | Identified exit to Testing 26317 | -3/Research | Found Prototype Launcher 26317 | -3/Research | Identified Tactical Quantum Warhead 26357 | -3/Research | Retrieved Zion intel report: Unaware Schematics 26358 | -3/Research | Zion Hacker squad teleported in 26391 | -3/Research | Entered Testing 26391 | -3/Testing | Accompanied by 2 allies 26421 | -3/Testing | Build established: Messiah-Scout 26436 | -3/Testing | Retrieved Zion intel report: Active Terminals 26453 | -3/Testing | Found Prototype Energy Cannon 26453 | -3/Testing | Identified Null Cannon 26527 | -3/Testing | Retrieved Zion intel report: Active Garrisons 26671 | -3/Testing | Found Prototype Energy Cannon 26671 | -3/Testing | Identified Hpw. Disruptor Cannon 26747 | -3/Testing | Retrieved Zion intel report: Unaware Analyses 26832 | -3/Testing | Discovered exit to Research (range 15) 26849 | -3/Testing | Found Prototype Energy Cannon 26849 | -3/Testing | Identified Disintegrator 26859 | -3/Testing | Retrieved Zion intel report: Prototype Schematics 27013 | -3/Testing | Central database locked down 27042 | -3/Testing | Found Prototype Processor 27042 | -3/Testing | Identified Exp. Target Analyzer 27141 | -3/Testing | First assault squad dispatched 27188 | -3/Testing | Found Prototype Device 27188 | -3/Testing | Identified Exp. Shield Generator 27242 | -3/Testing | Retrieved Zion intel report: Unaware Schematics 27296 | -3/Testing | Build established: Scavenger-Scout 27335 | -3/Testing | Found Prototype Device 27335 | -3/Testing | Identified AEGIS Remote Shield 27451 | -3/Testing | Retrieved Zion intel report: Trap Installations 27629 | -3/Testing | Terminal network hard line cut 27643 | -3/Testing | Found Prototype Protection 27643 | -3/Testing | Identified Lgt. Regenerative Plating 27645 | -3/Testing | Found Lgt. Regenerative Plating 27647 | -3/Testing | Found Prototype Protection 27663 | -3/Testing | Found Prototype Device 27663 | -3/Testing | Identified Adv. Kinecellerator 27694 | -3/Testing | Spotted Striker 27762 | -3/Testing | Spotted Striker 27769 | -3/Testing | Spotted Alpha 7 27773 | -3/Testing | Stole the SGEMP Prototype 27774 | -3/Testing | Identified Transdimensional Reconstructor 27774 | -3/Testing | Warped through subspace 27797 | -3/Testing | Spotted PP-D6A1NWVPMM 27815 | -3/Testing | Entered Research 27815 | -2/Research | Evolved 2 slots: Utility x1, Weapon x1 27858 | -2/Research | Discovered new exit (range 19) 27889 | -2/Research | Identified exit to Quarantine 27972 | -2/Research | Spotted B-90 Cyclops 28071 | -2/Research | Identified Hvy. Regenerative Plating 28295 | -2/Research | Build established: Scientist-Scout 28329 | -2/Research | Retrieved Zion intel report: Component Stockpiles 28330 | -2/Research | Zion Light squad teleported in 28440 | -2/Research | P-80 Master assimilated allied HQ-UVQ(z) 28458 | -2/Research | Found Prototype Protection 28458 | -2/Research | Identified Zio. Weapon Casing 28619 | -2/Research | Entered Quarantine 28619 | -2/Quarantine | Accompanied by 1 ally 28628 | -2/Quarantine | Retrieved Zion intel report: Component Stockpiles 28639 | -2/Quarantine | Spotted Alpha 7 28666 | -2/Quarantine | Destroyed Alpha 7 28670 | -2/Quarantine | Found Prototype Device 28670 | -2/Quarantine | Identified Exp. ECM Suite 28684 | -2/Quarantine | Found Corrupted Prototype Ballistic Gun 28703 | -2/Quarantine | Found Alien Launcher 28756 | -2/Quarantine | Retrieved Zion intel report: Prototype Stockpiles 28793 | -2/Quarantine | Retrieved Zion intel report: Active Garrisons 29071 | -2/Quarantine | Retrieved Zion intel report: Unaware Analyses 29079 | -2/Quarantine | Retrieved Zion intel report: Emergency Access 29081 | -2/Quarantine | Retrieved Zion intel report: Prototype Schematics 29084 | -2/Quarantine | Retrieved Zion intel report: Guard Positions 29105 | -2/Quarantine | Found Alien Artifact 29107 | -2/Quarantine | Found Alien Artifact 29111 | -2/Quarantine | Found Alien Artifact 29111 | -2/Quarantine | Identified Hpw. Transdimensional Reconstructor 29111 | -2/Quarantine | Warped through subspace 29132 | -2/Quarantine | Discovered new exit (range 5) 29134 | -2/Quarantine | Identified exit to Access 29222 | -2/Quarantine | Scanned by Researcher 29234 | -2/Quarantine | Found Alien Reactor 29234 | -2/Quarantine | Identified Matter Drive 29276 | -2/Quarantine | Build established: Messiah-Scout 29315 | -2/Quarantine | Found Alien Artifact 29315 | -2/Quarantine | Identified Dimensional Node Initializer 29315 | -2/Quarantine | Initialized slip node 29317 | -2/Quarantine | Found Dimensional Node Initializer 29341 | -2/Quarantine | Found Alien Artifact 29342 | -2/Quarantine | Identified Subatomic Replicator 29342 | -2/Quarantine | Used Subatomic Replicator to replicate Null Cannon 29385 | -2/Quarantine | Retrieved Zion intel report: Unaware Schematics 29417 | -2/Quarantine | Spotted Fortress 29464 | -2/Quarantine | Discovered new exit (range 6) 29464 | -2/Quarantine | Discovered new exit (range 6) 29466 | -2/Quarantine | Identified exit to Protoforge 29467 | -2/Quarantine | Identified exit to Section 7 29491 | -2/Quarantine | Entered Protoforge 29534 | -2/Protoforge | Spotted Hotshot 29551 | -2/Protoforge | Spotted Hotshot 29666 | -2/Protoforge | Spotted B-90 Cyclops 29683 | -2/Protoforge | Discovered exit to Access (range 22) 29707 | -2/Protoforge | Initialized slip node 29718 | -2/Protoforge | Retrieved Zion intel report: Guard Positions 29802 | -2/Protoforge | Found Prototype Launcher 29802 | -2/Protoforge | Identified Cep. Concussive Dispersal Blaster 29812 | -2/Protoforge | Found Prototype Device 29812 | -2/Protoforge | Identified Exp. System Purifier 29817 | -2/Protoforge | Found Exp. System Purifier 29825 | -2/Protoforge | Found Prototype Slashing Weapon 29825 | -2/Protoforge | Identified Exp. Terror Saw 29831 | -2/Protoforge | Found Exp. Terror Saw 29849 | -2/Protoforge | Spotted Hotshot 29854 | -2/Protoforge | Spotted Hotshot 29855 | -2/Protoforge | Spotted Hotshot 29857 | -2/Protoforge | Spotted Hotshot 29897 | -2/Protoforge | Superfortress began startup sequence 29914 | -2/Protoforge | Spotted V941-k 29914 | -2/Protoforge | Spotted V167-a 29980 | -2/Protoforge | Lost 3 parts (3n) 29997 | -2/Protoforge | Spotted Decapitator 29997 | -2/Protoforge | Spotted Decapitator 29997 | -2/Protoforge | Spotted Decapitator 30061 | -2/Protoforge | Spotted V766-i 30061 | -2/Protoforge | Spotted V265-g 30107 | -2/Protoforge | Destroyed Hotshot 30120 | -2/Protoforge | Destroyed Hotshot 30215 | -2/Protoforge | Build established: Scavenger-Skirmisher 30293 | -2/Protoforge | Garrison activated, responded to threat 30326 | -2/Protoforge | Destroyed Hotshot 30386 | -2/Protoforge | Spotted Decapitator 30386 | -2/Protoforge | Spotted Decapitator 30386 | -2/Protoforge | Spotted Decapitator 30386 | -2/Protoforge | Spotted Decapitator 30389 | -2/Protoforge | Destroyed Decapitator 30389 | -2/Protoforge | Destroyed Decapitator 30391 | -2/Protoforge | Destroyed Decapitator 30391 | -2/Protoforge | Destroyed Decapitator 30416 | -2/Protoforge | Forge Plexus network access discovered 30428 | -2/Protoforge | Spotted V828-u 30429 | -2/Protoforge | Spotted V987-d 30433 | -2/Protoforge | Spotted V061-k 30434 | -2/Protoforge | Spotted V653-m 30478 | -2/Protoforge | Destroyed Hotshot 30507 | -2/Protoforge | Destroyed 10 combat bots 30554 | -2/Protoforge | Found Exp. System Purifier 30561 | -2/Protoforge | Found Crosscalibrator 30706 | -2/Protoforge | Spotted V910-u 30711 | -2/Protoforge | Found Faulty Cep. Combat Aerolev Unit 30719 | -2/Protoforge | Destroyed V941-k 30747 | -2/Protoforge | Destroyed V167-a 30750 | -2/Protoforge | Destroyed V910-u 30759 | -2/Protoforge | System corruption reached 10% 30762 | -2/Protoforge | Found Corrupted Cep. Chromion Battery 30766 | -2/Protoforge | Found Faulty Cep. Combat Aerolev Unit 30780 | -2/Protoforge | Lost 4 parts (1n1u2w) 30833 | -2/Protoforge | Spotted Decapitator 30833 | -2/Protoforge | Spotted Decapitator 30833 | -2/Protoforge | Spotted V709-x 30833 | -2/Protoforge | Spotted V299-h 30833 | -2/Protoforge | Spotted Decapitator 30845 | -2/Protoforge | Found Cep. Plasma Driver 30856 | -2/Protoforge | Found Cep. Deflector Sword 30889 | -2/Protoforge | Terminal network hard line cut 30959 | -2/Protoforge | Destroyed Decapitator 30959 | -2/Protoforge | Destroyed Decapitator 30961 | -2/Protoforge | Destroyed Decapitator 30978 | -2/Protoforge | Found Cep. XC Strikerail 30982 | -2/Protoforge | Found Faulty Cep. XC Strikerail 30984 | -2/Protoforge | Found Cep. Lightning Penetrator 30993 | -2/Protoforge | Found Faulty Cep. XC Strikerail 31079 | -2/Protoforge | Found Faulty Cep. Plasma Driver 31080 | -2/Protoforge | Found Faulty Cep. XC Strikerail 31241 | -2/Protoforge | First assault squad dispatched 31246 | -2/Protoforge | Found Cep. Helical Railcannon 31270 | -2/Protoforge | Build established: Scavenger-Mutant 31386 | -2/Protoforge | Found Cep. NT7 Matterbank 31388 | -2/Protoforge | Found Cep. Chromion Battery 31398 | -2/Protoforge | Found Cep. Antigrav Storage Unit 31402 | -2/Protoforge | Found Cep. NT7 Matterbank 31403 | -2/Protoforge | Found Cep. Chromion Battery 31411 | -2/Protoforge | Found Cep. Matter Streamer 31413 | -2/Protoforge | Found Cep. NT7 Matterbank 31438 | -2/Protoforge | Spotted AP7-3 31438 | -2/Protoforge | Spotted AP7-3 31526 | -2/Protoforge | Destroyed 8 combat bots 31564 | -2/Protoforge | Found Faulty Cep. Gyrokinetic System 31569 | -2/Protoforge | Spotted V329-x 31606 | -2/Protoforge | Destroyed V329-x 31616 | -2/Protoforge | Found Cep. Gyrokinetic System 31618 | -2/Protoforge | Lost 4 parts (1n3u) 31620 | -2/Protoforge | Found Faulty Cep. Gyrokinetic System 31621 | -2/Protoforge | Found Faulty Cep. Combat Aerolev Unit 31632 | -2/Protoforge | Found Cep. XC Strikerail 31635 | -2/Protoforge | Found Prototype Processor 31635 | -2/Protoforge | Identified Exp. Core Analyzer 31753 | -2/Protoforge | Found Cep. Chromion Battery 31755 | -2/Protoforge | Found Cep. NT7 Matterbank 31788 | -2/Protoforge | Additional patrols dispatched to research labs 31797 | -2/Protoforge | Found Cep. Nanofilaments [Conductive] 31797 | -2/Protoforge | Installed Cep. Nanofilaments [Conductive], 2 resistances modified: TH -15%, EM +25% 31810 | -2/Protoforge | Found Transdimensional Reconstructor 31813 | -2/Protoforge | Found Cep. Navigation Harness 31905 | -2/Protoforge | Found Faulty Cep. Helical Railcannon 31908 | -2/Protoforge | Destroyed 9 combat bots 31909 | -2/Protoforge | Found Faulty Cep. Deflector Sword 31911 | -2/Protoforge | Found Faulty Cep. Helical Railcannon 31928 | -2/Protoforge | Build established: Gunner 31971 | -2/Protoforge | Found Exp. System Purifier 31973 | -2/Protoforge | Spotted Immortal 31973 | -2/Protoforge | Spotted Immortal 31977 | -2/Protoforge | Spotted Decapitator 31977 | -2/Protoforge | Spotted Decapitator 31977 | -2/Protoforge | Spotted Decapitator 31977 | -2/Protoforge | Spotted Decapitator 32014 | -2/Protoforge | Found Cep. RG22 Armor 32020 | -2/Protoforge | Found Faulty Cep. RG22 Armor 32023 | -2/Protoforge | Found Cep. Core Shell 32027 | -2/Protoforge | Found Cep. RG22 Armor 32048 | -2/Protoforge | Found Faulty Cep. RG22 Armor 32052 | -2/Protoforge | Warped through subspace to slip node 32053 | -2/Protoforge | Core integrity fell below 50% 32062 | -2/Protoforge | Spotted Hotshot 32062 | -2/Protoforge | Spotted Hotshot 32062 | -2/Protoforge | Spotted Hotshot 32062 | -2/Protoforge | Spotted Hotshot 32062 | -2/Protoforge | Spotted Hotshot 32064 | -2/Protoforge | Entered Access 32064 | -1/Access | Evolved 2 slots: Utility x2 32065 | -1/Access | Delivered the SGEMP Prototype to Zhirov 32065 | -1/Access | Zhirov transferred Access data 32066 | -1/Access | Loaded intel: 120 machine locations 32066 | -1/Access | Loaded intel: 97 trap records 32066 | -1/Access | Identified exit to Surface 32066 | -1/Access | Discovered exit to Surface (range 98) 32066 | -1/Access | Identified exit to Command 32066 | -1/Access | Discovered exit to Command (range 115) 32089 | -1/Access | Found Unknown Device 32089 | -1/Access | Identified Quantum Capacitor 32143 | -1/Access | Spotted B-99 Colossus 32189 | -1/Access | Retrieved Zion intel report: Prototype Schematics 32195 | -1/Access | Retrieved Zion intel report: Unaware Schematics 32234 | -1/Access | Unchained authorized (QV-33N) 32417 | -1/Access | Zhirov warped through subspace 32464 | -1/Access | Retrieved Zion intel report: Component Stockpiles 32469 | -1/Access | Retrieved Zion intel report: Prototype Stockpiles 32503 | -1/Access | Build established: Scout 32542 | -1/Access | Retrieved Zion intel report: Unaware Analyses 32543 | -1/Access | Zion Kinetic Resupply teleported in 32564 | -1/Access | First assault squad dispatched 32621 | -1/Access | Entered Command 32708 | -1/Command | Retrieved Zion intel report: Active Terminals 32854 | -1/Command | Retrieved Zion intel report: Unaware Analyses 32871 | -1/Command | First assault squad dispatched 33068 | -1/Command | Destroyed 7 combat bots 33073 | -1/Command | Disengaged cave seal 33073 | -1/Command | Zionites emerged from the dark tunnel 33128 | -1/Command | High security lockdown imminent 33153 | -1/Command | Spotted M Guard 33153 | -1/Command | Spotted M Guard 33153 | -1/Command | Spotted Combat Programmer 33158 | -1/Command | Spotted Combat Programmer 33168 | -1/Command | Destroyed Combat Programmer 33192 | -1/Command | Destroyed M Guard 33208 | -1/Command | High security lockdown engaged 33221 | -1/Command | Allies destroyed M Guard 33225 | -1/Command | Allies destroyed Combat Programmer 33225 | -1/Command | All MAIN.C guards destroyed 33241 | -1/Command | Found Hvy. Regenerative Plating 33242 | -1/Command | Found Hellfire Missile Launcher 33244 | -1/Command | Found Exp. Targeting Computer 33246 | -1/Command | Lost 6 parts (1p2n1u2w) 33255 | -1/Command | Lost 12 allies 33294 | -1/Command | Met MAIN.C 33294 | -1/Command | Hacked MAIN.C using A7's code 33304 | -1/Command | 0b10 Conduit disabled 33320 | -1/Command | Allies destroyed MAIN.C Shell 33321 | -1/Command | MAIN.C activated Command garrisons 33327 | -1/Command | Zhirov arrived to use SGEMP to disable MAIN.C 33373 | -1/Command | Discovered exit to Surface (range 38) 33373 | -1/Command | Discovered exit to Surface (range 88) 33373 | -1/Command | Extracted map data and part IDs from MAIN.C's data core 33450 | -1/Command | Build established: Scavenger-Mutant 33453 | -1/Command | Found Zio. Weapon Casing 33455 | -1/Command | Found Zio. Weapon Casing 33457 | -1/Command | Found Zio. Weapon Casing 33632 | -1/Command | Found AEGIS Remote Shield 33753 | -1/Command | Found Hvy. Regenerative Plating 33770 | -1/Command | Found Vortex Chain Reactor 33775 | -1/Command | Found Vortex Chain Reactor 33783 | -1/Command | Found Spectral Analyzer 33786 | -1/Command | Found Exp. System Purifier 33791 | -1/Command | Found Exp. EM Shield 33795 | -1/Command | Found Exp. Focal Shield 33798 | -1/Command | Found Exp. Phase Shifter 34042 | -1/Command | Build established: Scavenger-Gunner 34865 | -1/Command | Build established: Scavenger-Tank 34886 | -1/Command | Warped through subspace to slip node 34886 | -1/Command | Discovered new exit (range 4) 34901 | -1/Command | Entered Access_0 34904 | -1/Access_0 | Met Architect 34931 | -1/Access_0 | Destroyed A8 34968 | -1/Access_0 | Architect warped through subspace 35039 | -1/Access_0 | Architect warped through subspace 35050 | -1/Access_0 | Found Prototype Device 35050 | -1/Access_0 | Identified Desublimator 35079 | -1/Access_0 | Architect warped through subspace 35130 | -1/Access_0 | Architect warped through subspace 35169 | -1/Access_0 | Core integrity fell below 50% 35254 | -1/Access_0 | Architect warped through subspace 35281 | -1/Access_0 | Found Hpw. Transdimensional Reconstructor 35335 | -1/Access_0 | Architect warped through subspace 35337 | -1/Access_0 | Warped through subspace to slip node 35337 | -1/Access_0 | Discovered exit to Surface (range 8) 35358 | -1/Access_0 | Build established: Tank 35804 | -1/Access_0 | Warped through subspace 35831 | *** | Escaped! Last Messages --------------- 35346_ Ended siege mode. 35521_ Plasma Slug penetrates Wall. 35523_ Plasma Slug penetrates Earth. 35586_ Dropped Cep. NT7 Matterbank. 35587_ Extracted 500 matter. 35587_ Acquired Cep. NT7 Matterbank. 35746_ Plasma Slug penetrates Dimensional Slip Node. 35746_ Dimensional Slip Node implodes. 35748_ The unstable cave ceiling collapses. 35750_ Plasma Slug penetrates Wall. 35751_ The unstable cave ceiling collapses. 35767_ Plasma Slug penetrates Earth. 35768_ The unstable cave ceiling collapses. 35769_ Plasma Slug penetrates Earth. 35771_ The unstable cave ceiling collapses. 35804_ Warped through subspace. 35810_ The unstable cave ceiling collapses. [Achievement: Collector] [Achievement: Derelict Escape] Map ----- +----------------------------------------------------+ | | | | | | | | | | | | | | | | | | | | | | | | | | | | | | | | | ?????????????????????????????????????????????????? | | ?????????????????????????????????????????????????? | | ?????????????????????????????????????????????????? | | ?????????????????????????????????????????????????? | | ?????????????????????????????????????????????????? | | ?????????????????????????????????????????????????? | | ????????????????????????###??????????????????????? | | ???????????????????????## ##?????????????????????? | | ???????????????????????# #?????????????????????? | | ???????????????????????# @ #?????????????????????? | | ?????????????????????### #?????????????????????? | | ???????????????????#### ###???????????????????? | | ???????????????????# ## # #???????????????????? | | ??????????????????#### ##??????????????????? | | ??????????????????### # ##??????????????????? | | ??????????????????## # ## #??????????????????? | | ??????????????????## ## # #??????????????????? | | ??????????????????## # # #??????????????????? | | ??????????????????### # ####??????????????????? | | ??????????????????## # ## ##??????????????????? | | ???????????????????# #### ## #???????????????????? | | ???????????????????### # ## #???????????????????? | | ?????????????????????#####"## #??????????????????? | | ?????????????????????????? ?# #?????????????????? | | ?????????????????????????? #?# #????????????????? | | ?????????????????????????? ##??# #???????????????? | | ??????????????????????????##????# #??????????????? | | ?????????????????????????????????# #?????????????? | | ??????????????????????????????????# #????????????? | | ???????????????????????????????????# #???????????? | | ????????????????????????????????????# #??????????? | | ?????????????????????????????????????# ??????????? | | ???????????????????????????????????????#?????????? | | ?????????????????????????????????????????????????? | +----------------------------------------------------+ Best States ------------- Heat Dissipation 133 Coolant Potential 100 Energy Generation 55 Energy Capacity 2850 Matter Stores 1208 Matter Capacity 2550 Sight Range 24 Robot Scan Range 18 Terrain Scan Range 24 Terrain Scan Density 210 Cloak Strength 3 Additional Mass Support 20 Corruption Containment 8 Corruption Block 8 Armor Coverage 2100 Resistance: KI 30 Resistance: TH 15 Resistance: EM 75 Core Shielding 20 Propulsion Shielding 66 Utility Shielding 66 Weapon Shielding 100 Projectile Deflection 15 Weapon Cycling 25 Melee Speed Boost 20 Phase Shifting 20 Evasion (%) 71 Targeting Accuracy 20 Target Analysis 8 Core Analysis 8 Recoil Reduction 6 Energy Filtering 50 Force Boost 20 Offensive Hacking 38 Defensive Hacking 10 Trap Extractor Capacity 8 Item Schematics ----------------- Cld. Ion Engine | -8/Materials | Scanalyzed Imp. Actuator Array | -7/Factory | Hacked Arm. Huge Wheel | -7/Factory | Scanalyzed Wheel | -7/Factory | Scanalyzed Phase Cannon | -7/Zion | Archive Xenon Bombardment Thruster | -7/Zion | Archive Core Analyzer | -7/Zion | Archive Imp. Particle Charger | -7/Zion | Archive Adv. Field Recycling Unit | -7/Zion | Archive Transmission Jammer | -7/Zion | Archive Imp. System Restoration Module | -7/Zion | Archive Microactuators | -7/Zion | Archive Hvy. Pick | -7/Zion | Archive Imp. Salvage Targeting Computer | -7/Zion | Archive Nuclear Pulse Thruster | -7/Zion | Archive Gauss Cannon | -7/Zion | Archive Fusion Compressor | -7/Zion | Archive Remote Datajack | -7/Zion | Archive Imp. Component Analysis Suite | -7/Zion | Archive Hacking Suite | -6/Factory | Z-intel Triangulator | -6/Factory | Z-intel Imp. Shield Generator | -6/Factory | Z-intel Hvy. Plasma Cannon | -6/Factory | Z-intel Imp. Heavy Armor Plating | -6/Factory | Z-intel Enh. Optical Array | -6/Factory | Z-intel Hpw. Tractor Beam | -6/Factory | Z-intel Imp. Medium Armor Plating | -6/Factory | Z-intel Proton Cannon | -6/Factory | Z-intel Shield Generator | -6/Factory | Z-intel Particle Charger | -6/Factory | Z-intel Imp. Melee Analysis Suite | -6/Factory | Z-intel Sml. Storage Unit | -6/Hub_04(d) | Z-intel Com. Battery | -6/Hub_04(d) | Z-intel Hyp. Gauss Rifle | -6/Hub_04(d) | Z-intel Imp. Heat Sink | -6/Hub_04(d) | Z-intel Launcher Guidance Computer | -6/Hub_04(d) | Z-intel Adv. Heat Sink | -6/Hub_04(d) | Z-intel Adv. Signal Interpreter | -6/Hub_04(d) | Z-intel Magnetic Acceleration Cannon | -6/Hub_04(d) | Z-intel Coil Gun | -6/Hub_04(d) | Z-intel Carbon-fiber Leg | -6/Hub_04(d) | Z-intel Hvy. Missile Launcher | -6/Hub_04(d) | Z-intel Drone Bay | -6/Hub_04(d) | Z-intel Melee Analysis Suite | -6/Hub_04(d) | Z-intel Adv. KE Penetrator | -5/Factory | Scanalyzed Centrium Medium Armor Plating | -5/Factory | Scanalyzed Weapon Mount | -5/Factory | Scanalyzed Adv. Hacking Suite | -4/Factory | Scanalyzed Assault Drone Bay | -4/Zhirov | Free Exp. Heat Sink | -4/Zhirov | Free Exp. Optical Array | -4/Zhirov | Free Imp. Arc Thrower | -4/Zhirov | Free Com. Mass Driver | -3/Testing | Z-intel Hvy. Wave Gun | -3/Testing | Z-intel Exp. Signal Interpreter | -3/Testing | Z-intel Prc. Energy Filter | -3/Testing | Z-intel Exp. Terrain Scan Processor | -3/Testing | Z-intel Plasma Sword | -3/Testing | Z-intel Mni. Smartbomb Launcher | -3/Testing | Z-intel Exp. EM Disruption Field | -3/Testing | Z-intel Exp. Coolant Injector | -3/Testing | Z-intel Electron Diverter | -3/Testing | Z-intel Nanosword | -3/Testing | Z-intel Hvy. Hardcell Cannon | -3/Testing | Archive Prc. Phase Gun | -3/Testing | Archive Exp. Biometal Leg | -2/Quarantine | Z-intel Diametric Drive | -2/Quarantine | Z-intel Centrium Greatsword | -2/Quarantine | Z-intel Imp. Lightning Gun | -2/Quarantine | Z-intel Graviton Reactor | -2/Quarantine | Z-intel Adv. Thermal Defense Suite | -2/Quarantine | Z-intel Lgt. Antimatter Cannon | -2/Quarantine | Z-intel Exp. Propulsion Shielding | -2/Quarantine | Z-intel Exp. EM Shield | -2/Quarantine | Z-intel Exp. Flexi-carbon Leg | -2/Quarantine | Archive Enh. Coil Gun | -2/Quarantine | Archive Thermal Barrier | -2/Quarantine | Archive Gravity Neutralizer | -1/Access | Z-intel Exp. Energy Well | -1/Access | Z-intel Exp. Shield Generator | -1/Access | Z-intel Hds. Centrium Wheel | -1/Access | Z-intel Exp. Thermal Shield | -1/Access | Z-intel Neutron Missile Launcher | -1/Access | Z-intel Point Singularity Launcher | -1/Access | Z-intel Tiamat Missile Launcher | -1/Access | Z-intel Adv. Matter Compressor | -1/Access | Z-intel Robot Schematics ------------------ B-48 Gladiator | -7/Zion | Archive Y-54 Guardian | -7/Zion | Archive M-28 Smith | -7/Zion | Archive D-83 Annihilator | -7/Zion | Archive E-15 Imp | -6/Factory | Z-intel T-07 Excavator | -6/Factory | Z-intel K-01 Serf | -6/Factory | Z-intel A-27 Freighter | -3/Research | Z-intel R-06 Scavenger | -3/Research | Z-intel G-67 Veteran | -3/Research | Z-intel B-74 Champion | -3/Research | Z-intel C-55 Analyst | -3/Research | Z-intel R-10 Processor | -3/Research | Z-intel B-60 Warrior | -3/Research | Z-intel S-43 Plague | -3/Research | Z-intel A-15 Conveyor | -3/Research | Z-intel Y-72 Warden | -3/Research | Z-intel L-61 Swordsman | -3/Research | Z-intel M-36 Artificer | -3/Research | Z-intel X-77 Beamer | -3/Research | Z-intel A-02 Transporter | -3/Testing | Archive X-82 Rainmaker | -3/Testing | Z-intel W-44 Eye | -3/Testing | Z-intel H-77 Assassin | -3/Testing | Z-intel D-63 Destroyer | -3/Testing | Z-intel O-32 Director | -3/Testing | Z-intel X-87 Electro | -2/Quarantine | Archive H-88 Terminator | -2/Quarantine | Z-intel C-57 Dissector | -2/Quarantine | Z-intel C-65 Expert | -2/Quarantine | Z-intel G-73 Enforcer | -1/Access | Z-intel Fabricated ------------ Imp. Actuator Array | x2 | -7/Factory Imp. Actuator Array | x2 | -7/Factory Imp. Particle Charger | x2 | -4/Factory Repaired ---------- Lgt. Treads | 62% | -10/Materials Hrd. Light Armor Plating | 30% | -7/Factory Hrd. Light Armor Plating | 41% | -7/Factory Arm. Huge Wheel | 33% | -7/Factory Arm. Huge Wheel | 30% | -6/Factory Imp. Light Armor Plating | 58% | -6/Factory Centrium Medium Armor Plating | 31% | -4/Factory Studied --------- Wheel | -8/Materials | Hacked Com. Wheel | -8/Materials | Hacked Flak Cannon | -8/Materials | Hacked Arm. Huge Wheel | -7/Factory | Hacked Gatling Laser | -7/Factory | Hacked Great Axe | -7/Factory | Hacked Lgt. Angular Momentum Engine | -6/Factory | Hacked Linear Gravjet | -5/Factory | Hacked Cmb. Gravmag System | -5/Factory | Hacked Gyrokinetic Inverter | -4/Factory | Hacked Imp. Gyrokinetic Inverter | -4/Factory | Hacked Antigrav System | -4/Factory | Hacked Mic. Fission Core | -4/Factory | Hacked Lgt. Nuclear Core | -4/Factory | Hacked Tesla Rifle | -4/Factory | Hacked Hpw. Shock Rifle | -4/Factory | Hacked Lgt. Antimatter Reactor | -3/Research | Hacked Antigrav Array | -3/Testing | Hacked Enh. Nova Cannon | -2/Research | Hacked Imp. Antigrav System | -2/Research | Hacked Lgt. Quantum Reactor | -2/Research | Hacked Hvy. Disruptor Cannon | -2/Quarantine | Hacked Alien Tech Used ----------------- Integrated Dissipator Transdimensional Reconstructor High-powered Transdimensional Reconstructor Matter Drive Dimensional Node Initializer Subatomic Replicator Concept Nanofilaments [Conductive] Achievements -------------- Behind The Curtain Collector Definitely A Prototype Derelict Escape I'm Outta Here, Maybe Seal Team Z Sorry Old Pal Special Delivery Worth The Wait Challenges ------------ None Game ------ Seed ParticleCarbideBank Manual? 0 Play Time 11:30:18 Cumulative 342.7 hours Start 2025.12.24 @ 01:39:06 End 2025.12.25 @ 14:49:26 Sessions 7 Manual Loads 0 Difficulty Rogue Special Mode None Game No. 122 Rogue 122 Adventurer 0 Explorer 0 Win Type 0 Total 6 Types 4/0/0/0/0/0/0/1/0/1 Lore% 78 Gallery% 75 Achievement% 63 Wizard Run 0 Options --------- Layout 1 ASCII 0 Keyboard 0 Movement Mouse Keybinds 0 Fullscreen 2 Font 32/SmallcapsGlow Map View 50x35 Zoom Use 0% Tactical HUD 1 Map Filters NONE Filters NONE Steam 1 RUN: f2681c5d-83e5-497b-b266-fe987bb28a97